Workbook

Sheet Page 1
A1: PacifiCorp
A2: 12 Months Ended June 2011
A3: Functional Factors
A6: Function | B6: Description | C6: Production | D6: Transmission | E6: DPW | F6: CUST | G6: DMSC | H6: Total
A8: BOOKDEPR | B8: Book Depreciation | C8: ='Page 7'!C12 -> 0.5333088308 | D8: ='Page 7'!D12 -> 0.1666185282 | E8: ='Page 7'!E12 -> 0.296637073 | F8: ='Page 7'!F12 -> 0.003435567996 | G8: ='Page 7'!G12 -> 0 | H8: =ROUND(SUM(C8:G8),4) -> 1
A9: CUST | B9: Distribution Retail | C9: 0 | D9: 0 | E9: 0 | F9: 1 | G9: 0 | H9: 1
A10: DDS2 | B10: Deferred Debits - Situs | C10: ='Page 12'!F34 -> 0.8654170763 | D10: ='Page 12'!G34 -> 0.01134440937 | E10: ='Page 12'!H34 -> 0.007189450857 | F10: ='Page 12'!I34 -> 0.1453915654 | G10: ='Page 12'!J34 -> -0.02934250188 | H10: 1
A11: DDSO2 | B11: Deferred Debits - System Overhead | C11: ='Page 12'!F33 -> 0.1117746861 | D11: ='Page 12'!G33 -> 0.03725822871 | E11: ='Page 12'!H33 -> 0.2235493722 | F11: ='Page 12'!I33 -> 0 | G11: ='Page 12'!J33 -> 0.6274177129 | H11: 1
A12: DEFSG | B12: Deferred Debit - System Generation | C12: ='Page 12'!F47 -> 0.6346481617 | D12: ='Page 12'!G47 -> 0.3653518383 | E12: ='Page 12'!H47 -> 0 | F12: ='Page 12'!I47 -> 0 | G12: ='Page 12'!J47 -> 0 | H12: 1
A13: DMSC | B13: Distribution Miscellaneous | C13: 0 | D13: 0 | E13: 0 | F13: 0 | G13: 1 | H13: 1
A14: DPW | B14: Distribution Poles & Wires | C14: ='Page 14'!C15 -> 0 | D14: ='Page 14'!D15 -> 0 | E14: ='Page 14'!E15 -> 1 | F14: ='Page 14'!F15 -> 0 | G14: ='Page 14'!G15 -> 0 | H14: 1
A15: ESD | B15: Environmental Services Department | C15: 0.3 | D15: 0.1 | E15: 0.6 | F15: 0 | G15: 0 | H15: 1
A16: FERC | B16: FERC Fees | C16: ='Page 14'!C39 -> 0.5372886628 | D16: ='Page 14'!D39 -> 0.4627113372 | E16: ='Page 14'!E39 -> 0 | F16: ='Page 14'!F39 -> 0 | G16: ='Page 14'!G39 -> 0 | H16: 1
A17: G | B17: General Plant | C17: ='Page 3'!E38 -> 0.2328424472 | D17: ='Page 3'!F38 -> 0.2990202444 | E17: ='Page 3'!G38 -> 0.4419311617 | F17: ='Page 3'!H38 -> 0.02620614672 | G17: ='Page 3'!I38 -> 0 | H17: 1
A18: G-DGP | B18: General Plant - DGP Factor | C18: 0.6971287669 | D18: 0.3028712331 | E18: 0 | F18: 0 | G18: 0 | H18: 1
A19: G-DGU | B19: General Plant - DGU Factor | C19: 0.6971287669 | D19: 0.3028712331 | E19: 0 | F19: 0 | G19: 0 | H19: 1
A20: GP | B20: Total Plant | C20: ='Page 4'!E43 -> 0.5092664563 | D20: ='Page 4'!F43 -> 0.2157600698 | E20: ='Page 4'!G43 -> 0.268675091 | F20: ='Page 4'!H43 -> 0.006298382938 | G20: ='Page 4'!I43 -> 0 | H20: 1
A21: G-SG | B21: General Plant - SG Factor | C21: ='Page 3'!E34 -> 0.4715666024 | D21: ='Page 3'!F34 -> 0.5284333976 | E21: ='Page 3'!G34 -> 0 | F21: ='Page 3'!H34 -> 0 | G21: ='Page 3'!I34 -> 0 | H21: 1
A22: G-SITUS | B22: General Plant - SITUS Factor | C22: ='Page 3'!E36 -> 0 | D22: ='Page 3'!F36 -> 0.2571292981 | E22: ='Page 3'!G36 -> 0.7428707019 | F22: ='Page 3'!H36 -> 0 | G22: ='Page 3'!I36 -> 0 | H22: 1
A23: I | B23: Intangible Plant | C23: ='Page 5'!D33 -> 0.5565693786 | D23: ='Page 5'!E33 -> 0.1476908877 | E23: ='Page 5'!F33 -> 0.1412390394 | F23: ='Page 5'!G33 -> 0.1545006943 | G23: ='Page 5'!H33 -> 0 | H23: 1
A24: I-DGP | B24: Intangible Plant - DGP Factor | C24: 1 | D24: 0 | E24: 0 | F24: 0 | G24: 0 | H24: 1
A25: I-DGU | B25: Intangible Plant - DGU Factor | C25: 1 | D25: 0 | E25: 0 | F25: 0 | G25: 0 | H25: 1
A26: I-SG | B26: Intangible Plant - SG Factor | C26: ='Page 5'!D31 -> 0.8545976251 | D26: ='Page 5'!E31 -> 0.1454023749 | E26: ='Page 5'!F31 -> 0 | F26: ='Page 5'!G31 -> 0 | G26: ='Page 5'!H31 -> 0 | H26: 1
A27: I-SITUS | B27: Intangible Plant - SITUS Factor | C27: ='Page 5'!D32 -> 0.0276342919 | D27: ='Page 5'!E32 -> 0.4679663045 | E27: ='Page 5'!F32 -> 0.5043994036 | F27: ='Page 5'!G32 -> 0 | G27: ='Page 5'!H32 -> 0 | H27: 1
A28: LABOR | B28: Direct Labor Expense | C28: ='Page 14'!C25 -> 0.4271290455 | D28: ='Page 14'!D25 -> 0.06855059318 | E28: ='Page 14'!E25 -> 0.3553382213 | F28: ='Page 14'!F25 -> 0.14898214 | G28: ='Page 14'!G25 -> 0 | H28: 1
A29: MSS | B29: Materials & Supplies | C29: ='Page 14'!C32 -> 0.8430955205 | D29: ='Page 14'!D32 -> 0.00648440484 | E29: ='Page 14'!E32 -> 0.1504200747 | F29: ='Page 14'!F32 -> 0 | G29: ='Page 14'!G32 -> 0 | H29: 1
A30: OTHDGP | B30: Other Revenues - DGP Factor | C30: =C34 -> 0.6577867594 | D30: =D34 -> 0.3422132406 | E30: =E34 -> 0 | F30: =F34 -> 0 | G30: =G34 -> 0 | H30: 1
A31: OTHDGU | B31: Other Revenues - DGU Factor | C31: =C34 -> 0.6577867594 | D31: =D34 -> 0.3422132406 | E31: =E34 -> 0 | F31: =F34 -> 0 | G31: =G34 -> 0 | H31: 1
A32: OTHSE | B32: Other Revenues - SE Factor | C32: ='Page 6'!E23 -> 0 | D32: ='Page 6'!F23 -> 1 | E32: ='Page 6'!G23 -> 0 | F32: ='Page 6'!H23 -> 0 | G32: ='Page 6'!I23 -> 0 | H32: 1
A33: OTHSG | B33: Other Revenues - SG Factor | C33: ='Page 6'!E24 -> 0.6577867594 | D33: ='Page 6'!F24 -> 0.3422132406 | E33: ='Page 6'!G24 -> 0 | F33: ='Page 6'!H24 -> 0 | G33: ='Page 6'!I24 -> 0 | H33: 1
A34: OTHSGR | B34: Other Revenues - Rolled-In SG Factor | C34: =+C33 -> 0.6577867594 | D34: =+D33 -> 0.3422132406 | E34: =+E33 -> 0 | F34: =+F33 -> 0 | G34: =+G33 -> 0 | H34: 1
A35: OTHSITUS | B35: Other Revenues - SITUS | C35: ='Page 6'!E21 -> 0 | D35: ='Page 6'!F21 -> 0 | E35: ='Page 6'!G21 -> 0 | F35: ='Page 6'!H21 -> 0 | G35: ='Page 6'!I21 -> 1 | H35: 1
A36: OTHSO | B36: Other Revenues - SO Factor | C36: ='Page 6'!E25 -> 0 | D36: ='Page 6'!F25 -> 0 | E36: ='Page 6'!G25 -> 0 | F36: ='Page 6'!H25 -> 0 | G36: ='Page 6'!I25 -> 1 | H36: 1
A37: P | B37: Production | C37: ='Page 14'!C13 -> 1 | D37: ='Page 14'!D13 -> 0 | E37: ='Page 14'!E13 -> 0 | F37: ='Page 14'!F13 -> 0 | G37: ='Page 14'!G13 -> 0 | H37: 1

Sheet Page 2
A1: PacifiCorp
A2: 12 Months Ended June 2011
A3: Functional Factors
A6: Function | B6: Description | C6: Production | D6: Transmission | E6: DPW | F6: CUST | G6: DMSC | H6: Total
A8: SCHMA | B8: Schedule M Additions | C8: ='Page 9'!F12 -> 0.5259273579 | D8: ='Page 9'!G12 -> 0.1774923045 | E8: ='Page 9'!H12 -> 0.2797551698 | F8: ='Page 9'!I12 -> 0.01209048408 | G8: ='Page 9'!J12 -> 0.004734683748 | H8: =ROUND(SUM(C8:G8),4) -> 1
A9: SCHMAF | B9: Schedule M Additions - Flow Through | C9: 1 | D9: 0 | E9: 0 | F9: 0 | G9: 0 | H9: 1
A10: SCHMAP | B10: Schedule M Additions - Permanent | C10: ='Page 8'!F16 -> 0.4395609841 | D10: ='Page 8'!G16 -> 0.07868996996 | E10: ='Page 8'!H16 -> 0.345274554 | F10: ='Page 8'!I16 -> 0.136474492 | G10: ='Page 8'!J16 -> 0 | H10: 1
A11: SCHMAP-SO | B11: Schedule M Additions - Permanent-SO | C11: ='Page 8'!F15 -> 0.4328192325 | D11: ='Page 8'!G15 -> 0.0791881397 | E11: ='Page 8'!H15 -> 0.3495187311 | F11: ='Page 8'!I15 -> 0.1384738967 | G11: ='Page 8'!J15 -> 0 | H11: 1
A12: SCHMAT | B12: Schedule M Additions - Temporary | C12: =+'Page 8'!F$55 -> 0.5274051795 | D12: =+'Page 8'!G$55 -> 0.1791829187 | E12: =+'Page 8'!H$55 -> 0.2786340627 | F12: =+'Page 8'!I$55 -> 0.009962139945 | G12: =+'Page 8'!J$55 -> 0.004815699279 | H12: 1
A13: SCHMAT-SE | B13: Schedule M Additions - Temporary-SE | C13: ='Page 8'!F51 -> 0.9997027317 | D13: ='Page 8'!G51 -> 3.557156631e-05 | E13: ='Page 8'!H51 -> 0.0001843884424 | F13: ='Page 8'!I51 -> 7.730827448e-05 | G13: ='Page 8'!J51 -> 0 | H13: 1
A14: SCHMAT-SITUS | B14: Schedule M Additions - Temporary-SITUS | C14: ='Page 8'!F53 -> 0.5617108356 | D14: ='Page 8'!G53 -> 0.04522194091 | E14: ='Page 8'!H53 -> 0.2292405844 | F14: ='Page 8'!I53 -> 0.03586322665 | G14: ='Page 8'!J53 -> 0.1279634124 | H14: 1
A15: SCHMAT-SNP | B15: Schedule M Additions - Temporary-SNP | C15: ='Page 8'!F52 -> 0.5078698338 | D15: ='Page 8'!G52 -> 0.219200088 | E15: ='Page 8'!H52 -> 0.2726403702 | F15: ='Page 8'!I52 -> 0.0002897079667 | G15: ='Page 8'!J52 -> 0 | H15: 1
A16: SCHMAT-SO | B16: Schedule M Additions - Temporary-SO | C16: ='Page 8'!F54 -> 0.4795353426 | D16: ='Page 8'!G54 -> 0.166521788 | E16: ='Page 8'!H54 -> 0.301741049 | F16: ='Page 8'!I54 -> 0.05220182049 | G16: ='Page 8'!J54 -> 0 | H16: 1
A17: SCHMD | B17: Schedule M Deductions | C17: =+'Page 10'!F$25 -> 0.5836344334 | D17: =+'Page 10'!G$25 -> 0.1837394845 | E17: =+'Page 10'!H$25 -> 0.2112692068 | F17: =+'Page 10'!I$25 -> 0.005310549637 | G17: =+'Page 10'!J$25 -> 0.01604632562 | H17: 1
A18: SCHMDF | B18: Schedule M Deductions - Flow Through | C18: 1 | D18: 0 | E18: 0 | F18: 0 | G18: 0 | H18: 1
A19: SCHMDP | B19: Schedule M Deductions - Permanent | C19: ='Page 9'!F24 -> 0.443506747 | D19: ='Page 9'!G24 -> 0.06924130981 | E19: ='Page 9'!H24 -> 0.3446432613 | F19: ='Page 9'!I24 -> 0.1426086819 | G19: ='Page 9'!J24 -> 0 | H19: 1
A20: SCHMDP-SO | B20: Schedule M Deductions - Permanent- SO | C20: ='Page 9'!F23 -> 0.4271290455 | D20: ='Page 9'!G23 -> 0.06855059318 | E20: ='Page 9'!H23 -> 0.3553382213 | F20: ='Page 9'!I23 -> 0.14898214 | G20: ='Page 9'!J23 -> 0 | H20: 1
A21: SCHMDT | B21: Schedule M Deductions - Temporary | C21: =+'Page 10'!F18 -> 0.5845728096 | D21: =+'Page 10'!G18 -> 0.1845062306 | E21: =+'Page 10'!H18 -> 0.2103760569 | F21: =+'Page 10'!I18 -> 0.004391121843 | G21: =+'Page 10'!J18 -> 0.0161537811 | H21: =ROUND(SUM(C21:G21),4) -> 1
A22: SCHMDT-GPS | B22: Schedule M Deductions - Temporary-GPS | C22: ='Page 10'!F9 -> 0.5079072977 | D22: ='Page 10'!G9 -> 0.2191078108 | E22: ='Page 10'!H9 -> 0.2725340031 | F22: ='Page 10'!I9 -> 0.0004508884824 | G22: ='Page 10'!J9 -> 0 | H22: 1
A23: SCHMDT-SG | B23: Schedule M Deductions - Temporary-SG | C23: ='Page 10'!F11 -> 1 | D23: ='Page 10'!G11 -> 0 | E23: ='Page 10'!H11 -> 0 | F23: ='Page 10'!I11 -> 0 | G23: ='Page 10'!J11 -> 0 | H23: 1
A24: SCHMDT-SITUS | B24: Schedule M Deductions - Temporary-SITUS | C24: ='Page 10'!F17 -> 0.8344666423 | D24: ='Page 10'!G17 -> 0.01183861175 | E24: ='Page 10'!H17 -> 0.06331607949 | F24: ='Page 10'!I17 -> 0.02943826634 | G24: ='Page 10'!J17 -> 0.06094040008 | H24: 1
A25: SCHMDT-SNP | B25: Schedule M Deductions - Temporary-SNP | C25: ='Page 10'!F13 -> 0.5078024957 | D25: ='Page 10'!G13 -> 0.2193659483 | E25: ='Page 10'!H13 -> 0.272831556 | F25: ='Page 10'!I13 -> 0 | G25: ='Page 10'!J13 -> 0 | H25: 1
A26: SCHMDT-SO | B26: Schedule M Deductions - Temporary-SO | C26: ='Page 10'!F14 -> 0.4477732506 | D26: ='Page 10'!G14 -> 0.1816132325 | E26: ='Page 10'!H14 -> 0.365968925 | F26: ='Page 10'!I14 -> 0.004644591842 | G26: ='Page 10'!J14 -> 0 | H26: 1
A27: T | B27: Transmission | C27: ='Page 14'!C14 -> 0 | D27: ='Page 14'!D14 -> 1 | E27: ='Page 14'!E14 -> 0 | F27: ='Page 14'!F14 -> 0 | G27: ='Page 14'!G14 -> 0 | H27: 1
A28: TAXDEPR | B28: Tax Depreciation | C28: =+'Page 11'!C$24 -> 0.5774745116 | D28: =+'Page 11'!D$24 -> 0.1959065237 | E28: =+'Page 11'!E$24 -> 0.2221024253 | F28: =+'Page 11'!F$24 -> 0.004516539357 | G28: =+'Page 11'!G$24 -> 0 | H28: 1
A29: TD | B29: Transmission / Distribution | C29: ='Page 14'!C18 -> 0 | D29: ='Page 14'!D18 -> 0.4456868359 | E29: ='Page 14'!E18 -> 0.5543131641 | F29: ='Page 14'!F18 -> 0 | G29: ='Page 14'!G18 -> 0 | H29: 1

Sheet Page 3
A1: =+'Page 1'!$A$1 -> PacifiCorp
A2: =+'Page 1'!A2 -> 12 Months Ended June 2011
A3: General Plant
B5: Alloc.
A6: Description | B6: Factor | C6: Funct. | D6: Amount | E6: Prod | F6: Trans | G6: DPW | H6: CUST | I6: DMISC
A7: Business Centers | B7: CN | C7: CUST | D7: 24826 | E7: =$D7*VLOOKUP(+$C7,$B$45:$H$51,3) -> 0 | F7: =$D7*VLOOKUP(+$C7,$B$45:$H$51,4) -> 0 | G7: =$D7*VLOOKUP(+$C7,$B$45:$H$51,5) -> 0 | H7: =$D7*VLOOKUP(+$C7,$B$45:$H$51,6) -> 24826 | I7: =$D7*VLOOKUP(+$C7,$B$45:$H$51,7) -> 0
B8: SE | C8: P | D8: 660 | E8: 660 | F8: 0 | G8: 0 | H8: 0 | I8: 0
B9: SG | C9: P | D9: 96342 | E9: 96342 | F9: 0 | G9: 0 | H9: 0 | I9: 0
B10: SG | C10: T | D10: 107960 | E10: 0 | F10: 107960 | G10: 0 | H10: 0 | I10: 0
B11: SG | C11: TD | D11: 0 | E11: 0 | F11: 0 | G11: 0 | H11: 0 | I11: 0
A12: General Plant | B12: SO | C12: DPW | D12: 0 | E12: 0 | F12: 0 | G12: 0 | H12: 0 | I12: 0
B13: SO | C13: PTD | D13: 243358 | E13: 123577.7997 | F13: 53384.45845 | G13: 66395.7418 | H13: 0 | I13: 0
B14: SO | C14: TD | D14: 0 | E14: 0 | F14: 0 | G14: 0 | H14: 0 | I14: 0
B15: SO | C15: P | D15: 0 | E15: 0 | F15: 0 | G15: 0 | H15: 0 | I15: 0
A16: SSGCH | B16: SG | C16: P | D16: 0 | E16: 0 | F16: 0 | G16: 0 | H16: 0 | I16: 0
A17: SSGCT | B17: SG | C17: DPW | D17: 0 | E17: 0 | F17: 0 | G17: 0 | H17: 0 | I17: 0
A18: SSGCT | B18: SG | C18: P | D18: 0 | E18: 0 | F18: 0 | G18: 0 | H18: 0 | I18: 0
B19: SITUS | C19: DPW | D19: 200616 | E19: 0 | F19: 0 | G19: 200616 | H19: 0 | I19: 0
B20: SITUS | C20: P | D20: 0 | E20: 0 | F20: 0 | G20: 0 | H20: 0 | I20: 0
B21: SITUS | C21: TD | D21: 273573 | E21: 0 | F21: 121927.8848 | G21: 151645.1152 | H21: 0 | I21: 0
A22: Total-CUST | D22: =SUMIF($C:$C,"CUST",D:D) -> 24826 | E22: 0 | F22: 0 | G22: 0 | H22: 24826 | I22: 0
A23: Total-TD | D23: =SUMIF($C:$C,"TD",D:D) -> 273573 | E23: 0 | F23: 121927.8848 | G23: 151645.1152 | H23: 0 | I23: 0
A24: Total-PTD | D24: =SUMIF($C:$C,"PTD",D:D) -> 243358 | E24: 123577.7997 | F24: 53384.45845 | G24: 66395.7418 | H24: 0 | I24: 0
A25: Total-DPW | D25: =SUMIF($C:$C,"DPW",D:D) -> 200616 | E25: 0 | F25: 0 | G25: 200616 | H25: 0 | I25: 0
A26: Total-SSGCH | D26: =SUMIF($B:$B,"SSGCH",D:D) -> 0 | E26: 0 | F26: 0 | G26: 0 | H26: 0 | I26: 0
A27: Total-SSGCT | D27: =SUMIF($B:$B,"SSGCT",D:D) -> 0 | E27: 0 | F27: 0 | G27: 0 | H27: 0 | I27: 0
A28: Total-G-SG | D28: =SUMIF($B:$B,"SG",D:D) -> 204302 | E28: 96342 | F28: 107960 | G28: 0 | H28: 0 | I28: 0
A29: Total-SE | D29: =SUMIF($B:$B,"SE",D:D) -> 660 | E29: 660 | F29: 0 | G29: 0 | H29: 0 | I29: 0
A30: Total-G-Situs | D30: =SUMIF($B:$B,"SITUS",D:D) -> 474189 | E30: 0 | F30: 121927.8848 | G30: 352261.1152 | H30: 0 | I30: 0
A31: Total-SO | D31: =SUMIF($B:$B,"SO",D:D) -> 243358 | E31: 123577.7997 | F31: 53384.45845 | G31: 66395.7418 | H31: 0 | I31: 0
A32: Total-General Plant | D32: =SUM(D7:D21) -> 947335 | E32: 220579.7997 | F32: 283272.3432 | G32: 418656.857 | H32: 24826 | I32: 0
A34: G-SG Factor | D34: =SUM(E34:I34) -> 1 | E34: =E28/$D$28 -> 0.4715666024 | F34: =F28/$D$28 -> 0.5284333976 | G34: =G28/$D$28 -> 0 | H34: =H28/$D$28 -> 0 | I34: =I28/$D$28 -> 0
A35: SE Factor | D35: =SUM(E35:I35) -> 1 | E35: =E29/$D$29 -> 1 | F35: =F29/$D$29 -> 0 | G35: =G29/$D$29 -> 0 | H35: =H29/$D$29 -> 0 | I35: =I29/$D$29 -> 0
A36: G-SITUS Factor | D36: =SUM(E36:I36) -> 1 | E36: =E30/$D$30 -> 0 | F36: =F30/$D$30 -> 0.2571292981 | G36: =G30/$D$30 -> 0.7428707019 | H36: =H30/$D$30 -> 0 | I36: =I30/$D$30 -> 0
A37: SO Factor | D37: =SUM(E37:I37) -> 1 | E37: =E31/$D$31 -> 0.5078024957 | F37: =F31/$D$31 -> 0.2193659483 | G37: =G31/$D$31 -> 0.272831556 | H37: =H31/$D$31 -> 0 | I37: =I31/$D$31 -> 0
A38: G Allocator | D38: =SUM(E38:I38) -> 1 | E38: =E32/$D$32 -> 0.2328424472 | F38: =F32/$D$32 -> 0.2990202444 | G38: =G32/$D$32 -> 0.4419311617 | H38: =H32/$D$32 -> 0.02620614672 | I38: =I32/$D$32 -> 0
A39: Total Gen. Plant | D39: =D32 -> 947335
A40: Mining | D40: ='Page 4'!D12 -> 482169.4236 | E40: =D29 -> 660 | F40: =SUM(D40+E40) -> 482829.4236
A41: Total | C41: P | D41: =SUM(D39:D40) -> 1429504.424
B44: Functional Allocators: | D44: Prod | E44: Trans | F44: DPW | G44: CUST | H44: DMISC
B45: P | C45: =SUM(D45:H45) -> 1 | D45: ='Page 14'!$C$13 -> 1 | E45: ='Page 14'!$D$13 -> 0 | F45: ='Page 14'!$E$13 -> 0 | G45: ='Page 14'!$F$13 -> 0 | H45: ='Page 14'!$G$13 -> 0
B46: T | C46: 1 | D46: ='Page 14'!$C$14 -> 0 | E46: ='Page 14'!$D$14 -> 1 | F46: ='Page 14'!$E$14 -> 0 | G46: ='Page 14'!$F$14 -> 0 | H46: ='Page 14'!$G$14 -> 0
B47: TD | C47: 1 | D47: ='Page 14'!$C$18 -> 0 | E47: ='Page 14'!$D$18 -> 0.4456868359 | F47: ='Page 14'!$E$18 -> 0.5543131641 | G47: ='Page 14'!$F$18 -> 0 | H47: ='Page 14'!$G$18 -> 0
B48: CUST | C48: 1 | D48: 0 | E48: 0 | F48: 0 | G48: 1 | H48: 0
B49: DPW | C49: 1 | D49: 0 | E49: 0 | F49: 1 | G49: 0 | H49: 0
B50: PTD | C50: 1 | D50: ='Page 14'!$C$16 -> 0.5078024957 | E50: ='Page 14'!$D$16 -> 0.2193659483 | F50: ='Page 14'!$E$16 -> 0.272831556 | G50: ='Page 14'!$F$16 -> 0 | H50: ='Page 14'!$G$16 -> 0
B51: GP | C51: =SUM(D51:H51) -> 1 | D51: =+'Page 4'!E43 -> 0.5092664563 | E51: =+'Page 4'!F43 -> 0.2157600698 | F51: =+'Page 4'!G43 -> 0.268675091 | G51: =+'Page 4'!H43 -> 0.006298382938 | H51: =+'Page 4'!I43 -> 0

Sheet Page 4
A1: PacifiCorp
A2: Gross Plant
A3: =+'Page 1'!A2 -> 12 Months Ended June 2011
A4: (In 000's)
B6: Alloc.
A7: Description | B7: Factor | C7: Funct. | D7: Amount | E7: Production | F7: Transmisssion | G7: DPW | H7: CUSTOMER | I7: DMISC
A9: Production Plant | C9: P | D9: 10754154.36 | E9: =$D9*VLOOKUP(+$C9,$C$46:$I$52,3) -> 10754154.36 | F9: =$D9*VLOOKUP(+$C9,$C$46:$I$52,4) -> 0 | G9: =$D9*VLOOKUP(+$C9,$C$46:$I$52,5) -> 0 | H9: =$D9*VLOOKUP(+$C9,$C$46:$I$52,6) -> 0 | I9: =$D9*VLOOKUP(+$C9,$C$46:$I$52,7) -> 0
A10: Transmission Plant | C10: T | D10: 4645694.515 | E10: =$D10*VLOOKUP(+$C10,$C$46:$I$52,3) -> 0 | F10: =$D10*VLOOKUP(+$C10,$C$46:$I$52,4) -> 4645694.515 | G10: =$D10*VLOOKUP(+$C10,$C$46:$I$52,5) -> 0 | H10: =$D10*VLOOKUP(+$C10,$C$46:$I$52,6) -> 0 | I10: =$D10*VLOOKUP(+$C10,$C$46:$I$52,7) -> 0
A11: Distribution Plant | C11: DPW | D11: 5777980.004 | E11: =$D11*VLOOKUP(+$C11,$C$46:$I$52,3) -> 0 | F11: =$D11*VLOOKUP(+$C11,$C$46:$I$52,4) -> 0 | G11: =$D11*VLOOKUP(+$C11,$C$46:$I$52,5) -> 5777980.004 | H11: =$D11*VLOOKUP(+$C11,$C$46:$I$52,6) -> 0 | I11: =$D11*VLOOKUP(+$C11,$C$46:$I$52,7) -> 0
A12: Mining | B12: SE | C12: P | D12: 482169.4236 | E12: =$D12*VLOOKUP(+$C12,$C$46:$I$52,3) -> 482169.4236 | F12: =$D12*VLOOKUP(+$C12,$C$46:$I$52,4) -> 0 | G12: =$D12*VLOOKUP(+$C12,$C$46:$I$52,5) -> 0 | H12: =$D12*VLOOKUP(+$C12,$C$46:$I$52,6) -> 0 | I12: =$D12*VLOOKUP(+$C12,$C$46:$I$52,7) -> 0
A13: General Plant
A14: Business Centers | B14: ='Page 3'!B7 -> CN | C14: ='Page 3'!C7 -> CUST | D14: ='Page 3'!D7 -> 24826 | E14: =$D14*VLOOKUP(+$C14,$C$46:$I$52,3) -> 0 | F14: =$D14*VLOOKUP(+$C14,$C$46:$I$52,4) -> 0 | G14: =$D14*VLOOKUP(+$C14,$C$46:$I$52,5) -> 0 | H14: =$D14*VLOOKUP(+$C14,$C$46:$I$52,6) -> 24826 | I14: =$D14*VLOOKUP(+$C14,$C$46:$I$52,7) -> 0
A15: Utah Mine | B15: ='Page 3'!B8 -> SE | C15: ='Page 3'!C8 -> P | D15: ='Page 3'!D8 -> 660 | E15: 660 | F15: 0 | G15: 0 | H15: 0 | I15: 0
B16: ='Page 3'!B9 -> SG | C16: ='Page 3'!C9 -> P | D16: ='Page 3'!D9 -> 96342 | E16: 96342 | F16: 0 | G16: 0 | H16: 0 | I16: 0
B17: ='Page 3'!B10 -> SG | C17: ='Page 3'!C10 -> T | D17: ='Page 3'!D10 -> 107960 | E17: 0 | F17: 107960 | G17: 0 | H17: 0 | I17: 0
B18: ='Page 3'!B12 -> SO | C18: ='Page 3'!C12 -> DPW | D18: ='Page 3'!D12 -> 0 | E18: 0 | F18: 0 | G18: 0 | H18: 0 | I18: 0
B19: ='Page 3'!B16 -> SG | C19: ='Page 3'!C16 -> P | D19: ='Page 3'!D16 -> 0 | E19: 0 | F19: 0 | G19: 0 | H19: 0 | I19: 0
B20: ='Page 3'!B17 -> SG | C20: ='Page 3'!C17 -> DPW | D20: ='Page 3'!D17 -> 0 | E20: 0 | F20: 0 | G20: 0 | H20: 0 | I20: 0
B21: ='Page 3'!B18 -> SG | C21: ='Page 3'!C18 -> P | D21: ='Page 3'!D18 -> 0 | E21: 0 | F21: 0 | G21: 0 | H21: 0 | I21: 0
A22: General Plant | B22: ='Page 3'!B19 -> SITUS | C22: ='Page 3'!C19 -> DPW | D22: ='Page 3'!D19 -> 200616 | E22: 0 | F22: 0 | G22: 200616 | H22: 0 | I22: 0
A23: General Plant | B23: ='Page 3'!B20 -> SITUS | C23: ='Page 3'!C20 -> P | D23: ='Page 3'!D20 -> 0 | E23: 0 | F23: 0 | G23: 0 | H23: 0 | I23: 0
A24: General Plant | B24: ='Page 3'!B21 -> SITUS | C24: ='Page 3'!C21 -> TD | D24: ='Page 3'!D21 -> 273573 | E24: 0 | F24: 121927.8848 | G24: 151645.1152 | H24: 0 | I24: 0
A25: Total General Plant | D25: =SUBTOTAL(9,D14:D24) -> 703977 | E25: 97002 | F25: 229887.8848 | G25: 352261.1152 | H25: 24826 | I25: 0
A27: Intangible Plant
A28: Customer Service Sys | B28: ='Page 5'!A7 -> CN | C28: ='Page 5'!B7 -> CUST | D28: ='Page 5'!C7 -> 121077 | E28: =$D28*VLOOKUP(+$C28,$C$46:$I$53,3) -> 0 | F28: =$D28*VLOOKUP(+$C28,$C$46:$I$53,4) -> 0 | G28: =$D28*VLOOKUP(+$C28,$C$46:$I$53,5) -> 0 | H28: =$D28*VLOOKUP(+$C28,$C$46:$I$53,6) -> 121077 | I28: =$D28*VLOOKUP(+$C28,$C$46:$I$53,7) -> 0
A29: Customer Service Sys | B29: ='Page 5'!A8 -> SE | C29: ='Page 5'!B8 -> P | D29: ='Page 5'!C8 -> 3654 | E29: 3654 | F29: 0 | G29: 0 | H29: 0 | I29: 0
A30: Washington Hydro | B30: ='Page 5'!A9 -> SG | C30: ='Page 5'!B9 -> P | D30: ='Page 5'!C9 -> 94169 | E30: 94169 | F30: 0 | G30: 0 | H30: 0 | I30: 0
A31: Utah Hydro | B31: ='Page 5'!A10 -> SG | C31: ='Page 5'!B10 -> T | D31: ='Page 5'!C10 -> 47228 | E31: 0 | F31: 47228 | G31: 0 | H31: 0 | I31: 0
A32: Colorado Steam-UPD | B32: ='Page 5'!A11 -> SG | C32: ='Page 5'!B11 -> P | D32: ='Page 5'!C11 -> 173622 | E32: 173622 | F32: 0 | G32: 0 | H32: 0 | I32: 0
B33: ='Page 5'!A12 -> SG | C33: ='Page 5'!B12 -> P | D33: ='Page 5'!C12 -> 9790 | E33: 9790 | F33: 0 | G33: 0 | H33: 0 | I33: 0
A34: Oregon Trans | B34: ='Page 5'!A15 -> SO | C34: ='Page 5'!B15 -> P | D34: ='Page 5'!C15 -> 29195 | E34: 29195 | F34: 0 | G34: 0 | H34: 0 | I34: 0
A35: Utah Mine | B35: ='Page 5'!A16 -> SO | C35: ='Page 5'!B16 -> PTD | D35: ='Page 5'!C16 -> 302242 | E35: 153479.2419 | F35: 66301.60295 | G35: 82461.15514 | H35: 0 | I35: 0
A36: Utah | B36: ='Page 5'!A17 -> SO | C36: ='Page 5'!B17 -> TD | D36: ='Page 5'!C17 -> 12686 | E36: 0 | F36: 5653.9832 | G36: 7032.0168 | H36: 0 | I36: 0
A37: Utah G/O | B37: ='Page 5'!A18 -> SO | C37: ='Page 5'!B18 -> LABOR | D37: ='Page 5'!C18 -> 0 | E37: 0 | F37: 0 | G37: 0 | H37: 0 | I37: 0
A38: Utah G/O | B38: ='Page 5'!A23 -> SITUS | C38: ='Page 5'!B23 -> TD | D38: ='Page 5'!C23 -> 7514 | E38: 0 | F38: 3348.890885 | G38: 4165.109115 | H38: 0 | I38: 0
A39: Total Intangible Plant | D39: =SUBTOTAL(9,D28:D38) -> 801177 | E39: 463909.2419 | F39: 122532.477 | G39: 93658.28106 | H39: 121077 | I39: 0
A41: Total Gross Plant | D41: =SUBTOTAL(9,D8:D39) -> 23165152.3 | E41: 11797235.02 | F41: 4998114.876 | G41: 6223899.401 | H41: 145903 | I41: 0
B43: GP Factor | D43: =SUM(E43:I43) -> 1 | E43: =E41/$D41 -> 0.5092664563 | F43: =F41/$D41 -> 0.2157600698 | G43: =G41/$D41 -> 0.268675091 | H43: =H41/$D41 -> 0.006298382938 | I43: =I41/$D41 -> 0
B46: Functional Allocators: | E46: Prod | F46: Trans | G46: DPW | H46: CUST | I46: DMISC
C47: P | D47: =SUM(E47:F47) -> 1 | E47: ='Page 14'!$C$13 -> 1 | F47: ='Page 14'!$D$13 -> 0 | G47: ='Page 14'!$E$13 -> 0 | H47: ='Page 14'!$F$13 -> 0 | I47: ='Page 14'!$G$13 -> 0
C48: T | D48: =SUM(E48:F48) -> 1 | E48: ='Page 14'!$C$14 -> 0 | F48: ='Page 14'!$D$14 -> 1 | G48: ='Page 14'!$E$14 -> 0 | H48: ='Page 14'!$F$14 -> 0 | I48: ='Page 14'!$G$14 -> 0
C49: TD | D49: =SUM(E49:I49) -> 1 | E49: ='Page 14'!$C$18 -> 0 | F49: ='Page 14'!$D$18 -> 0.4456868359 | G49: ='Page 14'!$E$18 -> 0.5543131641 | H49: ='Page 14'!$F$18 -> 0 | I49: ='Page 14'!$G$18 -> 0
C50: CUST | D50: =SUM(E50:I50) -> 1 | E50: 0 | F50: 0 | G50: 0 | H50: 1 | I50: 0
C51: DPW | D51: =SUM(E51:I51) -> 1 | E51: 0 | F51: 0 | G51: 1 | H51: 0 | I51: 0
C52: PTD | D52: =SUM(E52:I52) -> 1 | E52: ='Page 14'!$C$16 -> 0.5078024957 | F52: ='Page 14'!$D$16 -> 0.2193659483 | G52: ='Page 14'!$E$16 -> 0.272831556 | H52: ='Page 14'!$F$16 -> 0 | I52: ='Page 14'!$G$16 -> 0
C53: LABOR | D53: =SUM(E53:I53) -> 1 | E53: ='Page 10'!F35 -> 0.4271290455 | F53: ='Page 10'!G35 -> 0.06855059318 | G53: ='Page 10'!H35 -> 0.3553382213 | H53: ='Page 10'!I35 -> 0.14898214 | I53: ='Page 10'!J35 -> 0

Sheet Page 5
A1: =+'Page 1'!A1 -> PacifiCorp
A2: =+'Page 1'!A2 -> 12 Months Ended June 2011
A3: Intangible Plant
A4: (In 000's)
A5: Alloc.
A6: Factor | B6: Funct. | C6: Amount | D6: Production | E6: Transmisssion | F6: DPW | G6: Customer | H6: DMSC
A7: CN | B7: CUST | C7: 121077 | D7: =$C7*VLOOKUP(+$B7,$B$37:$H$44,3) -> 0 | E7: =$C7*VLOOKUP(+$B7,$B$37:$H$44,4) -> 0 | F7: =$C7*VLOOKUP(+$B7,$B$37:$H$44,5) -> 0 | G7: =$C7*VLOOKUP(+$B7,$B$37:$H$44,6) -> 121077 | H7: =$C7*VLOOKUP(+$B7,$B$37:$H$44,7) -> 0
A8: SE | B8: P | C8: 3654 | D8: 3654 | E8: 0 | F8: 0 | G8: 0 | H8: 0
A9: SG | B9: P | C9: 94169 | D9: 94169 | E9: 0 | F9: 0 | G9: 0 | H9: 0
A10: SG | B10: T | C10: 47228 | D10: 0 | E10: 47228 | F10: 0 | G10: 0 | H10: 0
A11: SG | B11: P | C11: 173622 | D11: 173622 | E11: 0 | F11: 0 | G11: 0 | H11: 0
A12: SG | B12: P | C12: 9790 | D12: 9790 | E12: 0 | F12: 0 | G12: 0 | H12: 0
A13: SO | B13: CUST | C13: 7767 | D13: 0 | E13: 0 | F13: 0 | G13: 7767 | H13: 0
A14: SO | B14: DPW | C14: 24000 | D14: 0 | E14: 0 | F14: 24000 | G14: 0 | H14: 0
A15: SO | B15: P | C15: 29195 | D15: 29195 | E15: 0 | F15: 0 | G15: 0 | H15: 0
A16: SO | B16: PTD | C16: 302242 | D16: 153479.2419 | E16: 66301.60295 | F16: 82461.15514 | G16: 0 | H16: 0
A17: SO | B17: TD | C17: 12686 | D17: 0 | E17: 5653.9832 | F17: 7032.0168 | G17: 0 | H17: 0
A18: SO | B18: LABOR | C18: 0 | D18: 0 | E18: 0 | F18: 0 | G18: 0 | H18: 0
A19: SO | B19: DMSC | C19: 0 | D19: 0 | E19: 0 | F19: 0 | G19: 0 | H19: 0
A20: SITUS | B20: CUST | C20: 0 | D20: 0 | E20: 0 | F20: 0 | G20: 0 | H20: 0
A21: SITUS | B21: PTD | C21: 463 | D21: 235.1125555 | E21: 101.5664341 | F21: 126.3210104 | G21: 0 | H21: 0
A22: SITUS | B22: T | C22: 531 | D22: 0 | E22: 531 | F22: 0 | G22: 0 | H22: 0
A23: SITUS | B23: TD | C23: 7514 | D23: 0 | E23: 3348.890885 | F23: 4165.109115 | G23: 0 | H23: 0
A24: Total-DGP | C24: =SUMIF($A:$A,"SG-P",C:C) -> 0 | D24: 0 | E24: 0 | F24: 0 | G24: 0 | H24: 0
A25: Total-DGU | C25: =SUMIF($A:$A,"SG-U",C:C) -> 0 | D25: 0 | E25: 0 | F25: 0 | G25: 0 | H25: 0
A26: Total-SG | C26: =SUMIF($A:$A,"SG",C:C) -> 324809 | D26: 277581 | E26: 47228 | F26: 0 | G26: 0 | H26: 0
A27: Total-SITUS | C27: =SUMIF($A:$A,"SITUS",C:C) -> 8508 | D27: 235.1125555 | E27: 3981.457319 | F27: 4291.430126 | G27: 0 | H27: 0
A28: Total-Intangible | C28: =SUM(C7:C23) -> 833938 | D28: 464144.3545 | E28: 123165.0435 | F28: 117784.6021 | G28: 128844 | H28: 0
A29: I-DGP FACTOR | C29: =SUM(D29:H29) ->  | D29: =D24/$C$24 ->  | E29: =E24/$C$24 ->  | F29: =F24/$C$24 ->  | G29: =G24/$C$24 ->  | H29: =H24/$C$24 -> 
A30: I-DGU FACTOR | C30: =SUM(D30:H30) ->  | D30: =D25/$C$25 ->  | E30: =E25/$C$25 ->  | F30: =F25/$C$25 ->  | G30: =G25/$C$25 ->  | H30: =H25/$C$25 -> 
A31: I-SG FACTOR | C31: =SUM(D31:H31) -> 1 | D31: =D26/$C$26 -> 0.8545976251 | E31: =E26/$C$26 -> 0.1454023749 | F31: =F26/$C$26 -> 0 | G31: =G26/$C$26 -> 0 | H31: =H26/$C$26 -> 0
A32: I-Situs FACTOR | C32: =SUM(D32:H32) -> 1 | D32: =D27/$C$27 -> 0.0276342919 | E32: =E27/$C$27 -> 0.4679663045 | F32: =F27/$C$27 -> 0.5043994036 | G32: =G27/$C$27 -> 0 | H32: =H27/$C$27 -> 0
A33: I FACTOR | C33: =SUM(D33:H33) -> 1 | D33: =D28/$C$28 -> 0.5565693786 | E33: =E28/$C$28 -> 0.1476908877 | F33: =F28/$C$28 -> 0.1412390394 | G33: =G28/$C$28 -> 0.1545006943 | H33: =H28/$C$28 -> 0
B36: Functional Allocators: | D36: Prod | E36: Trans | F36: DPW | G36: CUST | H36: DMSC
B37: P | C37: =SUM(D37:H37) -> 1 | D37: ='Page 14'!$C$13 -> 1 | E37: ='Page 14'!$D$13 -> 0 | F37: ='Page 14'!$E$13 -> 0 | G37: ='Page 14'!$F$13 -> 0 | H37: ='Page 14'!$G$13 -> 0
B38: T | C38: 1 | D38: ='Page 14'!$C$14 -> 0 | E38: ='Page 14'!$D$14 -> 1 | F38: ='Page 14'!$E$14 -> 0 | G38: ='Page 14'!$F$14 -> 0 | H38: ='Page 14'!$G$14 -> 0
B39: TD | C39: 1 | D39: ='Page 14'!$C$18 -> 0 | E39: ='Page 14'!$D$18 -> 0.4456868359 | F39: ='Page 14'!$E$18 -> 0.5543131641 | G39: ='Page 14'!$F$18 -> 0 | H39: ='Page 14'!$G$18 -> 0
B40: CUST | C40: 1 | D40: 0 | E40: 0 | F40: 0 | G40: 1 | H40: 0
B41: DPW | C41: 1 | D41: 0 | E41: 0 | F41: 1 | G41: 0 | H41: 0
B42: PTD | C42: 1 | D42: ='Page 14'!$C$16 -> 0.5078024957 | E42: ='Page 14'!$D$16 -> 0.2193659483 | F42: ='Page 14'!$E$16 -> 0.272831556 | G42: ='Page 14'!$F$16 -> 0 | H42: ='Page 14'!$G$16 -> 0
B43: DMSC | C43: 1 | D43: ='Page 1'!C13 -> 0 | E43: ='Page 1'!D13 -> 0 | F43: ='Page 1'!E13 -> 0 | G43: ='Page 1'!F13 -> 0 | H43: ='Page 1'!G13 -> 1
B44: LABOR | C44: =SUM(D44:H44) -> 1 | D44: ='Page 10'!F35 -> 0.4271290455 | E44: ='Page 10'!G35 -> 0.06855059318 | F44: ='Page 10'!H35 -> 0.3553382213 | G44: ='Page 10'!I35 -> 0.14898214 | H44: ='Page 10'!J35 -> 0

Sheet Page 6
A1: =+'Page 1'!A1 -> PacifiCorp
A2: =+'Page 1'!A2:A2 -> 12 Months Ended June 2011
A3: Account 456
A5: Main
A6: Account | B6: Factor | C6: Function | D6: Amount | E6: Production | F6: Transmission | G6: DPW | H6: Customer | I6: DMSC
A7: 456 | B7: OTHER | C7: DMSC | D7: 4920 | E7: =$D7*VLOOKUP(+$C7,$C$29:$I35,3,FALSE) -> 0 | F7: =$D7*VLOOKUP(+$C7,$C$29:$I35,4,FALSE) -> 0 | G7: =$D7*VLOOKUP(+$C7,$C$29:$I35,5,FALSE) -> 0 | H7: =$D7*VLOOKUP(+$C7,$C$29:$I35,6,FALSE) -> 0 | I7: =$D7*VLOOKUP(+$C7,$C$29:$I35,7,FALSE) -> 4920
A8: 456 | B8: SE | C8: P | D8: 0 | E8: =$D8*VLOOKUP(+$C8,$C$29:$I36,3,FALSE) -> 0 | F8: =$D8*VLOOKUP(+$C8,$C$29:$I36,4,FALSE) -> 0 | G8: =$D8*VLOOKUP(+$C8,$C$29:$I36,5,FALSE) -> 0 | H8: =$D8*VLOOKUP(+$C8,$C$29:$I36,6,FALSE) -> 0 | I8: =$D8*VLOOKUP(+$C8,$C$29:$I36,7,FALSE) -> 0
A9: 456 | B9: SE | C9: T | D9: 10745 | E9: =$D9*VLOOKUP(+$C9,$C$29:$I37,3,FALSE) -> 0 | F9: =$D9*VLOOKUP(+$C9,$C$29:$I37,4,FALSE) -> 10745 | G9: =$D9*VLOOKUP(+$C9,$C$29:$I37,5,FALSE) -> 0 | H9: =$D9*VLOOKUP(+$C9,$C$29:$I37,6,FALSE) -> 0 | I9: =$D9*VLOOKUP(+$C9,$C$29:$I37,7,FALSE) -> 0
A10: 456 | B10: SG | C10: P | D10: 117830 | E10: =$D10*VLOOKUP(+$C10,$C$29:$I38,3,FALSE) -> 117830 | F10: =$D10*VLOOKUP(+$C10,$C$29:$I38,4,FALSE) -> 0 | G10: =$D10*VLOOKUP(+$C10,$C$29:$I38,5,FALSE) -> 0 | H10: =$D10*VLOOKUP(+$C10,$C$29:$I38,6,FALSE) -> 0 | I10: =$D10*VLOOKUP(+$C10,$C$29:$I38,7,FALSE) -> 0
A11: 456 | B11: SG | C11: T | D11: 61301 | E11: =$D11*VLOOKUP(+$C11,$C$29:$I38,3,FALSE) -> 0 | F11: =$D11*VLOOKUP(+$C11,$C$29:$I38,4,FALSE) -> 61301 | G11: =$D11*VLOOKUP(+$C11,$C$29:$I38,5,FALSE) -> 0 | H11: =$D11*VLOOKUP(+$C11,$C$29:$I38,6,FALSE) -> 0 | I11: =$D11*VLOOKUP(+$C11,$C$29:$I38,7,FALSE) -> 0
A12: 456 | B12: SO | C12: DMSC | D12: 293 | E12: =$D12*VLOOKUP(+$C12,$C$29:$I39,3,FALSE) -> 0 | F12: =$D12*VLOOKUP(+$C12,$C$29:$I39,4,FALSE) -> 0 | G12: =$D12*VLOOKUP(+$C12,$C$29:$I39,5,FALSE) -> 0 | H12: =$D12*VLOOKUP(+$C12,$C$29:$I39,6,FALSE) -> 0 | I12: =$D12*VLOOKUP(+$C12,$C$29:$I39,7,FALSE) -> 293
A13: 456 | B13: SITUS | C13: DMSC | D13: 94223 | E13: =$D13*VLOOKUP(+$C13,$C$29:$I40,3,FALSE) -> 0 | F13: =$D13*VLOOKUP(+$C13,$C$29:$I40,4,FALSE) -> 0 | G13: =$D13*VLOOKUP(+$C13,$C$29:$I40,5,FALSE) -> 0 | H13: =$D13*VLOOKUP(+$C13,$C$29:$I40,6,FALSE) -> 0 | I13: =$D13*VLOOKUP(+$C13,$C$29:$I40,7,FALSE) -> 94223
A14: 456 | B14: SITUS | C14: P | D14: 0 | E14: =$D14*VLOOKUP(+$C14,$C$29:$I41,3,FALSE) -> 0 | F14: =$D14*VLOOKUP(+$C14,$C$29:$I41,4,FALSE) -> 0 | G14: =$D14*VLOOKUP(+$C14,$C$29:$I41,5,FALSE) -> 0 | H14: =$D14*VLOOKUP(+$C14,$C$29:$I41,6,FALSE) -> 0 | I14: =$D14*VLOOKUP(+$C14,$C$29:$I41,7,FALSE) -> 0
A15: Total Situs Revenues | D15: =SUMIF($B:$B,"SITUS",D:D) -> 94223 | E15: 0 | F15: 0 | G15: 0 | H15: 0 | I15: 94223
A16: Total CN Revenues | D16: =SUMIF($B:$B,"CN",D:D) -> 0 | E16: 0 | F16: 0 | G16: 0 | H16: 0 | I16: 0
A17: Total SE Revenues | D17: =SUMIF($B:$B,"SE",D:D) -> 10745 | E17: 0 | F17: 10745 | G17: 0 | H17: 0 | I17: 0
A18: Total SG Revenues | D18: =SUMIF($B:$B,"SG",D:D) -> 179131 | E18: 117830 | F18: 61301 | G18: 0 | H18: 0 | I18: 0
A19: Total SO Revenues | D19: =SUMIF($B:$B,"SO",D:D) -> 293 | E19: 0 | F19: 0 | G19: 0 | H19: 0 | I19: 293
A20: Total Operation | D20: =SUM(D7:D14) -> 289312 | E20: 117830 | F20: 72046 | G20: 0 | H20: 0 | I20: 99436
A21: OTHSITUS | D21: =SUM(E21:I21) -> 1 | E21: =E15/$D$15 -> 0 | F21: =F15/$D$15 -> 0 | G21: =G15/$D$15 -> 0 | H21: =H15/$D$15 -> 0 | I21: =I15/$D$15 -> 1
A22: CN Factor | D22: 0 | E22: =IF(ISERROR(E16/$D$16)," ",(E16/$D$16)) ->  | F22: =IF(ISERROR(F16/$D$16)," ",(F16/$D$16)) ->  | G22: =IF(ISERROR(G16/$D$16)," ",(G16/$D$16)) ->  | H22: =IF(ISERROR(H16/$D$16)," ",(H16/$D$16)) ->  | I22: =IF(ISERROR(I16/$D$16)," ",(I16/$D$16)) -> 
A23: OTHSE | D23: 1 | E23: =E17/$D$17 -> 0 | F23: =F17/$D$17 -> 1 | G23: =G17/$D$17 -> 0 | H23: =H17/$D$17 -> 0 | I23: =I17/$D$17 -> 0
A24: OTHSG | D24: 1 | E24: =E18/$D$18 -> 0.6577867594 | F24: =F18/$D$18 -> 0.3422132406 | G24: =G18/$D$18 -> 0 | H24: =H18/$D$18 -> 0 | I24: =I18/$D$18 -> 0
A25: OTHSO | D25: 1 | E25: =E19/$D$19 -> 0 | F25: =F19/$D$19 -> 0 | G25: =G19/$D$19 -> 0 | H25: =H19/$D$19 -> 0 | I25: =I19/$D$19 -> 1
A26: Total Operation Factor | D26: 1 | E26: =E20/$D$20 -> 0.4072765734 | F26: =F20/$D$20 -> 0.2490252738 | G26: =G20/$D$20 -> 0 | H26: =H20/$D$20 -> 0 | I26: =I20/$D$20 -> 0.3436981529
D28: Total | E28: Prod | F28: Trans | G28: DPW | H28: CUST | I28: DMSC
C29: P | D29: =SUM(E29:I29) -> 1 | E29: ='Page 14'!$C$13 -> 1 | F29: ='Page 14'!$D$13 -> 0 | G29: ='Page 14'!$E$13 -> 0 | H29: ='Page 14'!$F$13 -> 0 | I29: ='Page 14'!$G$13 -> 0
C30: T | D30: =SUM(E30:I30) -> 1 | E30: ='Page 14'!$C$14 -> 0 | F30: ='Page 14'!$D$14 -> 1 | G30: ='Page 14'!$E$14 -> 0 | H30: ='Page 14'!$F$14 -> 0 | I30: ='Page 14'!$G$14 -> 0
C31: TD | D31: 1 | E31: ='Page 14'!$C$18 -> 0 | F31: ='Page 14'!$D$18 -> 0.4456868359 | G31: ='Page 14'!$E$18 -> 0.5543131641 | H31: ='Page 14'!$F$18 -> 0 | I31: ='Page 14'!$G$18 -> 0
C32: CUST | D32: 1 | E32: 0 | F32: 0 | G32: 0 | H32: 1 | I32: 0
C33: DPW | D33: 1 | E33: 0 | F33: 0 | G33: 1 | H33: 0 | I33: 0
C34: PTD | D34: 1 | E34: ='Page 14'!$C$16 -> 0.5078024957 | F34: ='Page 14'!$D$16 -> 0.2193659483 | G34: ='Page 14'!$E$16 -> 0.272831556 | H34: ='Page 14'!$F$16 -> 0 | I34: ='Page 14'!$G$16 -> 0
C35: DMSC | D35: 1 | E35: 0 | F35: 0 | G35: 0 | H35: 0 | I35: 1

Sheet Page 7
A1: =+'Page 1'!$A$1 -> PacifiCorp
A2: =+'Page 1'!A2 -> 12 Months Ended June 2011
A3: Depreciation Expense
A5: Function | B5: Amount | C5: Production | D5: Transmission | E5: DPW | F5: CUST | G5: DMSC
A6: CUST | B6: 1706 | C6: =VLOOKUP($A6,$A$15:$G$21,3,FALSE)*$B6 -> 0 | D6: =VLOOKUP($A6,$A$15:$G$21,4,FALSE)*$B6 -> 0 | E6: =VLOOKUP($A6,$A$15:$G$21,5,FALSE)*$B6 -> 0 | F6: =VLOOKUP($A6,$A$15:$G$21,6,FALSE)*$B6 -> 1706 | G6: =VLOOKUP($A6,$A$15:$G$21,7,FALSE)*$B6 -> 0
A7: DPW | B7: 143309 | C7: =VLOOKUP($A7,$A$15:$G$21,3,FALSE)*$B7 -> 0 | D7: =VLOOKUP($A7,$A$15:$G$21,4,FALSE)*$B7 -> 0 | E7: =VLOOKUP($A7,$A$15:$G$21,5,FALSE)*$B7 -> 143309 | F7: =VLOOKUP($A7,$A$15:$G$21,6,FALSE)*$B7 -> 0 | G7: =VLOOKUP($A7,$A$15:$G$21,7,FALSE)*$B7 -> 0
A8: P | B8: 257395 | C8: =VLOOKUP($A8,$A$15:$G$21,3,FALSE)*$B8 -> 257395 | D8: =VLOOKUP($A8,$A$15:$G$21,4,FALSE)*$B8 -> 0 | E8: =VLOOKUP($A8,$A$15:$G$21,5,FALSE)*$B8 -> 0 | F8: =VLOOKUP($A8,$A$15:$G$21,6,FALSE)*$B8 -> 0 | G8: =VLOOKUP($A8,$A$15:$G$21,7,FALSE)*$B8 -> 0
A9: PTD | B9: 14632 | C9: =VLOOKUP($A9,$A$15:$G$21,3,FALSE)*$B9 -> 7430.166117 | D9: =VLOOKUP($A9,$A$15:$G$21,4,FALSE)*$B9 -> 3209.762556 | E9: =VLOOKUP($A9,$A$15:$G$21,5,FALSE)*$B9 -> 3992.071327 | F9: =VLOOKUP($A9,$A$15:$G$21,6,FALSE)*$B9 -> 0 | G9: =VLOOKUP($A9,$A$15:$G$21,7,FALSE)*$B9 -> 0
A10: T | B10: 79528 | C10: =VLOOKUP($A10,$A$15:$G$21,3,FALSE)*$B10 -> 0 | D10: =VLOOKUP($A10,$A$15:$G$21,4,FALSE)*$B10 -> 79528 | E10: =VLOOKUP($A10,$A$15:$G$21,5,FALSE)*$B10 -> 0 | F10: =VLOOKUP($A10,$A$15:$G$21,6,FALSE)*$B10 -> 0 | G10: =VLOOKUP($A10,$A$15:$G$21,7,FALSE)*$B10 -> 0
A11: Book Depreciation | B11: =SUM(B6:B10) -> 496570 | C11: 264825.1661 | D11: 82737.76256 | E11: 147301.0713 | F11: 1706 | G11: 0
A12: BookDepr Factor | B12: =B11/$B11 -> 1 | C12: 0.5333088308 | D12: 0.1666185282 | E12: 0.296637073 | F12: 0.003435567996 | G12: 0
A15: P | B15: ='Page 14'!$B$13 -> 1 | C15: ='Page 14'!$C$13 -> 1 | D15: ='Page 14'!$D$13 -> 0 | E15: ='Page 14'!$E$13 -> 0 | F15: ='Page 14'!$F$13 -> 0 | G15: ='Page 14'!$G$13 -> 0
A16: T | B16: ='Page 14'!$B$14 -> 1 | C16: ='Page 14'!$C$14 -> 0 | D16: ='Page 14'!$D$14 -> 1 | E16: ='Page 14'!$E$14 -> 0 | F16: ='Page 14'!$F$14 -> 0 | G16: ='Page 14'!$G$14 -> 0
A17: DPW | B17: ='Page 14'!$B$15 -> 1 | C17: ='Page 14'!$C$15 -> 0 | D17: ='Page 14'!$D$15 -> 0 | E17: ='Page 14'!$E$15 -> 1 | F17: ='Page 14'!$F$15 -> 0 | G17: ='Page 14'!$G$15 -> 0
A18: CUST | B18: ='Page 14'!$B$15 -> 1 | C18: 0 | D18: 0 | E18: 0 | F18: 1 | G18: 0
A19: PTD | B19: ='Page 14'!$B$16 -> 1 | C19: ='Page 14'!$C$16 -> 0.5078024957 | D19: ='Page 14'!$D$16 -> 0.2193659483 | E19: ='Page 14'!$E$16 -> 0.272831556 | F19: ='Page 14'!$F$16 -> 0 | G19: ='Page 14'!$G$16 -> 0
A20: TD | B20: ='Page 14'!$B$18 -> 1 | C20: ='Page 14'!$C$18 -> 0 | D20: ='Page 14'!$D$18 -> 0.4456868359 | E20: ='Page 14'!$E$18 -> 0.5543131641 | F20: ='Page 14'!$F$18 -> 0 | G20: ='Page 14'!$G$18 -> 0
A21: G | B21: ='Page 3'!$D$38 -> 1 | C21: ='Page 3'!$E$38 -> 0.2328424472 | D21: ='Page 3'!$F$38 -> 0.2990202444 | E21: ='Page 3'!$G$38 -> 0.4419311617 | F21: ='Page 3'!$H$38 -> 0.02620614672 | G21: ='Page 3'!$I$38 -> 0

Sheet Page 8
B1: =+'Page 1'!A1 -> PacifiCorp
B2: =+'Page 1'!A2 -> 12 Months Ended June 2011
B3: Schedule M
B4: Primary | C4: PITA
B5: Account | C5: Factor | D5: Function | E5: Amount | F5: Production | G5: Transmission | H5: Poles & Wires | I5: Customers | J5: Miscellaneous
B6: ADDITIONS
A7: =IF(C7="","",B7&"-"&C7) -> SCHMAP-SCHMDEXP | B7: SCHMAP | C7: SCHMDEXP | D7: LABOR | E7: -536 | F7: =VLOOKUP($D7,'Page 10'!$D$30:$J$41,3,FALSE)*$E7 -> -228.9411684 | G7: =VLOOKUP($D7,'Page 10'!$D$30:$J$41,4,FALSE)*$E7 -> -36.74311794 | H7: =VLOOKUP($D7,'Page 10'!$D$30:$J$41,5,FALSE)*$E7 -> -190.4612866 | I7: =VLOOKUP($D7,'Page 10'!$D$30:$J$41,6,FALSE)*$E7 -> -79.85442705 | J7: =VLOOKUP($D7,'Page 10'!$D$30:$J$41,7,FALSE)*$E7 -> 0
A8: =IF(C8="","",B8&"-"&C8) -> SCHMAP-SE | B8: SCHMAP | C8: SE | D8: P | E8: 130 | F8: =VLOOKUP($D8,'Page 10'!$D$30:$J$41,3,FALSE)*$E8 -> 130 | G8: =VLOOKUP($D8,'Page 10'!$D$30:$J$41,4,FALSE)*$E8 -> 0 | H8: =VLOOKUP($D8,'Page 10'!$D$30:$J$41,5,FALSE)*$E8 -> 0 | I8: =VLOOKUP($D8,'Page 10'!$D$30:$J$41,6,FALSE)*$E8 -> 0 | J8: =VLOOKUP($D8,'Page 10'!$D$30:$J$41,7,FALSE)*$E8 -> 0
A9: =IF(C9="","",B9&"-"&C9) -> SCHMAP-OTHER | B9: SCHMAP | C9: OTHER | D9: P | E9: 29 | F9: =VLOOKUP($D9,'Page 10'!$D$30:$J$41,3,FALSE)*$E9 -> 29 | G9: =VLOOKUP($D9,'Page 10'!$D$30:$J$41,4,FALSE)*$E9 -> 0 | H9: =VLOOKUP($D9,'Page 10'!$D$30:$J$41,5,FALSE)*$E9 -> 0 | I9: =VLOOKUP($D9,'Page 10'!$D$30:$J$41,6,FALSE)*$E9 -> 0 | J9: =VLOOKUP($D9,'Page 10'!$D$30:$J$41,7,FALSE)*$E9 -> 0
A10: =IF(C10="","",B10&"-"&C10) -> SCHMAP-SO | B10: SCHMAP | C10: SO | D10: LABOR | E10: 13204 | F10: =VLOOKUP($D10,'Page 10'!$D$30:$J$41,3,FALSE)*$E10 -> 5639.811917 | G10: =VLOOKUP($D10,'Page 10'!$D$30:$J$41,4,FALSE)*$E10 -> 905.1420323 | H10: =VLOOKUP($D10,'Page 10'!$D$30:$J$41,5,FALSE)*$E10 -> 4691.885874 | I10: =VLOOKUP($D10,'Page 10'!$D$30:$J$41,6,FALSE)*$E10 -> 1967.160177 | J10: =VLOOKUP($D10,'Page 10'!$D$30:$J$41,7,FALSE)*$E10 -> 0
A11: =IF(C11="","",B11&"-"&C11) -> SCHMAP-SO | B11: SCHMAP | C11: SO | D11: PTD | E11: 1002 | F11: =VLOOKUP($D11,'Page 10'!$D$30:$J$41,3,FALSE)*$E11 -> 508.8181007 | G11: =VLOOKUP($D11,'Page 10'!$D$30:$J$41,4,FALSE)*$E11 -> 219.8046802 | H11: =VLOOKUP($D11,'Page 10'!$D$30:$J$41,5,FALSE)*$E11 -> 273.3772191 | I11: =VLOOKUP($D11,'Page 10'!$D$30:$J$41,6,FALSE)*$E11 -> 0 | J11: =VLOOKUP($D11,'Page 10'!$D$30:$J$41,7,FALSE)*$E11 -> 0
A13: =IF(C13="","",B13&"-"&C13) ->  | B13: Total-SO | E13: =SUMIF($A:$A,"SCHMAP-SO",E:E) -> 14206 | F13: 6148.630017 | G13: 1124.946713 | H13: 4965.263093 | I13: 1967.160177 | J13: 0
A14: =IF(C14="","",B14&"-"&C14) ->  | B14: Total SCHMAP | E14: =SUMIF($B:$B,"SCHMAP",E:E) -> 13829 | F14: 6078.688849 | G14: 1088.203595 | H14: 4774.801807 | I14: 1887.30575 | J14: 0
A15: =IF(C15="","",B15&"-"&C15) ->  | B15: SCHMAP-SO | E15: =SUM(F15:J15) -> 1 | F15: =IF(ISERROR(F13/$E13)," ",(F13/$E13)) -> 0.4328192325 | G15: 0.0791881397 | H15: 0.3495187311 | I15: 0.1384738967 | J15: 0
A16: =IF(C16="","",B16&"-"&C16) ->  | B16: SCHMAP FACTOR | E16: =SUM(F16:J16) -> 1 | F16: 0.4395609841 | G16: 0.07868996996 | H16: 0.345274554 | I16: 0.136474492 | J16: 0
A18: =IF(C18="","",B18&"-"&C18) -> SCHMAT-CIAC | B18: SCHMAT | C18: CIAC | D18: DPW | E18: 27829 | F18: =VLOOKUP($D18,'Page 10'!$D$30:$J$41,3,FALSE)*$E18 -> 0 | G18: =VLOOKUP($D18,'Page 10'!$D$30:$J$41,4,FALSE)*$E18 -> 0 | H18: =VLOOKUP($D18,'Page 10'!$D$30:$J$41,5,FALSE)*$E18 -> 27829 | I18: =VLOOKUP($D18,'Page 10'!$D$30:$J$41,6,FALSE)*$E18 -> 0 | J18: =VLOOKUP($D18,'Page 10'!$D$30:$J$41,7,FALSE)*$E18 -> 0
A19: SCHMAT-BADDEBT | B19: SCHMAT | C19: BADDEBT | D19: CUST | E19: 1315 | F19: =VLOOKUP($D19,'Page 10'!$D$30:$J$41,3,FALSE)*$E19 -> 0 | G19: =VLOOKUP($D19,'Page 10'!$D$30:$J$41,4,FALSE)*$E19 -> 0 | H19: =VLOOKUP($D19,'Page 10'!$D$30:$J$41,5,FALSE)*$E19 -> 0 | I19: =VLOOKUP($D19,'Page 10'!$D$30:$J$41,6,FALSE)*$E19 -> 1315 | J19: =VLOOKUP($D19,'Page 10'!$D$30:$J$41,7,FALSE)*$E19 -> 0
A20: SCHMAT-SCHMDEXP | B20: SCHMAT | C20: SCHMDEXP | D20: GP | E20: 568694 | F20: =VLOOKUP($D20,'Page 10'!$D$30:$J$41,3,FALSE)*$E20 -> 289616.7781 | G20: =VLOOKUP($D20,'Page 10'!$D$30:$J$41,4,FALSE)*$E20 -> 122701.4571 | H20: =VLOOKUP($D20,'Page 10'!$D$30:$J$41,5,FALSE)*$E20 -> 152793.9122 | I20: =VLOOKUP($D20,'Page 10'!$D$30:$J$41,6,FALSE)*$E20 -> 3581.852587 | J20: =VLOOKUP($D20,'Page 10'!$D$30:$J$41,7,FALSE)*$E20 -> 0
A21: SCHMAT-SE | B21: SCHMAT | C21: SE | D21: LABOR | E21: 17 | F21: =VLOOKUP($D21,'Page 10'!$D$30:$J$41,3,FALSE)*$E21 -> 7.261193773 | G21: =VLOOKUP($D21,'Page 10'!$D$30:$J$41,4,FALSE)*$E21 -> 1.165360084 | H21: =VLOOKUP($D21,'Page 10'!$D$30:$J$41,5,FALSE)*$E21 -> 6.040749762 | I21: =VLOOKUP($D21,'Page 10'!$D$30:$J$41,6,FALSE)*$E21 -> 2.53269638 | J21: =VLOOKUP($D21,'Page 10'!$D$30:$J$41,7,FALSE)*$E21 -> 0
A22: SCHMAT-SE | B22: SCHMAT | C22: SE | D22: P | E22: 32744 | F22: =VLOOKUP($D22,'Page 10'!$D$30:$J$41,3,FALSE)*$E22 -> 32744 | G22: =VLOOKUP($D22,'Page 10'!$D$30:$J$41,4,FALSE)*$E22 -> 0 | H22: =VLOOKUP($D22,'Page 10'!$D$30:$J$41,5,FALSE)*$E22 -> 0 | I22: =VLOOKUP($D22,'Page 10'!$D$30:$J$41,6,FALSE)*$E22 -> 0 | J22: =VLOOKUP($D22,'Page 10'!$D$30:$J$41,7,FALSE)*$E22 -> 0
A23: SCHMAT-SG | B23: SCHMAT | C23: SG | D23: DPW | E23: 1 | F23: =VLOOKUP($D23,'Page 10'!$D$30:$J$41,3,FALSE)*$E23 -> 0 | G23: =VLOOKUP($D23,'Page 10'!$D$30:$J$41,4,FALSE)*$E23 -> 0 | H23: =VLOOKUP($D23,'Page 10'!$D$30:$J$41,5,FALSE)*$E23 -> 1 | I23: =VLOOKUP($D23,'Page 10'!$D$30:$J$41,6,FALSE)*$E23 -> 0 | J23: =VLOOKUP($D23,'Page 10'!$D$30:$J$41,7,FALSE)*$E23 -> 0
A24: SCHMAT-SG | B24: SCHMAT | C24: SG | D24: P | E24: 16463 | F24: =VLOOKUP($D24,'Page 10'!$D$30:$J$41,3,FALSE)*$E24 -> 16463 | G24: =VLOOKUP($D24,'Page 10'!$D$30:$J$41,4,FALSE)*$E24 -> 0 | H24: =VLOOKUP($D24,'Page 10'!$D$30:$J$41,5,FALSE)*$E24 -> 0 | I24: =VLOOKUP($D24,'Page 10'!$D$30:$J$41,6,FALSE)*$E24 -> 0 | J24: =VLOOKUP($D24,'Page 10'!$D$30:$J$41,7,FALSE)*$E24 -> 0
A25: SCHMAT-SG | B25: SCHMAT | C25: SG | D25: T | E25: 419 | F25: =VLOOKUP($D25,'Page 10'!$D$30:$J$41,3,FALSE)*$E25 -> 0 | G25: =VLOOKUP($D25,'Page 10'!$D$30:$J$41,4,FALSE)*$E25 -> 419 | H25: =VLOOKUP($D25,'Page 10'!$D$30:$J$41,5,FALSE)*$E25 -> 0 | I25: =VLOOKUP($D25,'Page 10'!$D$30:$J$41,6,FALSE)*$E25 -> 0 | J25: =VLOOKUP($D25,'Page 10'!$D$30:$J$41,7,FALSE)*$E25 -> 0
A26: SCHMAT-SGCT | B26: SCHMAT | C26: SGCT | D26: P | E26: 1122 | F26: =VLOOKUP($D26,'Page 10'!$D$30:$J$41,3,FALSE)*$E26 -> 1122 | G26: =VLOOKUP($D26,'Page 10'!$D$30:$J$41,4,FALSE)*$E26 -> 0 | H26: =VLOOKUP($D26,'Page 10'!$D$30:$J$41,5,FALSE)*$E26 -> 0 | I26: =VLOOKUP($D26,'Page 10'!$D$30:$J$41,6,FALSE)*$E26 -> 0 | J26: =VLOOKUP($D26,'Page 10'!$D$30:$J$41,7,FALSE)*$E26 -> 0
A27: SCHMAT-SNP | B27: SCHMAT | C27: SNP | D27: GP | E27: 2331 | F27: =VLOOKUP($D27,'Page 10'!$D$30:$J$41,3,FALSE)*$E27 -> 1187.10011 | G27: =VLOOKUP($D27,'Page 10'!$D$30:$J$41,4,FALSE)*$E27 -> 502.9367227 | H27: =VLOOKUP($D27,'Page 10'!$D$30:$J$41,5,FALSE)*$E27 -> 626.281637 | I27: =VLOOKUP($D27,'Page 10'!$D$30:$J$41,6,FALSE)*$E27 -> 14.68153063 | J27: =VLOOKUP($D27,'Page 10'!$D$30:$J$41,7,FALSE)*$E27 -> 0
A28: SCHMAT-SNP | B28: SCHMAT | C28: SNP | D28: PTD | E28: 48346 | F28: =VLOOKUP($D28,'Page 10'!$D$30:$J$41,3,FALSE)*$E28 -> 24550.21946 | G28: =VLOOKUP($D28,'Page 10'!$D$30:$J$41,4,FALSE)*$E28 -> 10605.46614 | H28: =VLOOKUP($D28,'Page 10'!$D$30:$J$41,5,FALSE)*$E28 -> 13190.31441 | I28: =VLOOKUP($D28,'Page 10'!$D$30:$J$41,6,FALSE)*$E28 -> 0 | J28: =VLOOKUP($D28,'Page 10'!$D$30:$J$41,7,FALSE)*$E28 -> 0
A29: SCHMAT-SNPD | B29: SCHMAT | C29: SNPD | D29: DPW | E29: 9587 | F29: =VLOOKUP($D29,'Page 10'!$D$30:$J$41,3,FALSE)*$E29 -> 0 | G29: =VLOOKUP($D29,'Page 10'!$D$30:$J$41,4,FALSE)*$E29 -> 0 | H29: =VLOOKUP($D29,'Page 10'!$D$30:$J$41,5,FALSE)*$E29 -> 9587 | I29: =VLOOKUP($D29,'Page 10'!$D$30:$J$41,6,FALSE)*$E29 -> 0 | J29: =VLOOKUP($D29,'Page 10'!$D$30:$J$41,7,FALSE)*$E29 -> 0
A30: SCHMAT-SO | B30: SCHMAT | C30: SO | D30: DMSC | E30: 0 | F30: =VLOOKUP($D30,'Page 10'!$D$30:$J$41,3,FALSE)*$E30 -> 0 | G30: =VLOOKUP($D30,'Page 10'!$D$30:$J$41,4,FALSE)*$E30 -> 0 | H30: =VLOOKUP($D30,'Page 10'!$D$30:$J$41,5,FALSE)*$E30 -> 0 | I30: =VLOOKUP($D30,'Page 10'!$D$30:$J$41,6,FALSE)*$E30 -> 0 | J30: =VLOOKUP($D30,'Page 10'!$D$30:$J$41,7,FALSE)*$E30 -> 0
A31: SCHMAT-SO | B31: SCHMAT | C31: SO | D31: LABOR | E31: 15866 | F31: =VLOOKUP($D31,'Page 10'!$D$30:$J$41,3,FALSE)*$E31 -> 6776.829436 | G31: =VLOOKUP($D31,'Page 10'!$D$30:$J$41,4,FALSE)*$E31 -> 1087.623711 | H31: =VLOOKUP($D31,'Page 10'!$D$30:$J$41,5,FALSE)*$E31 -> 5637.796219 | I31: =VLOOKUP($D31,'Page 10'!$D$30:$J$41,6,FALSE)*$E31 -> 2363.750633 | J31: =VLOOKUP($D31,'Page 10'!$D$30:$J$41,7,FALSE)*$E31 -> 0
A32: SCHMAT-SO | B32: SCHMAT | C32: SO | D32: PTD | E32: 29415 | F32: =VLOOKUP($D32,'Page 10'!$D$30:$J$41,3,FALSE)*$E32 -> 14937.01041 | G32: =VLOOKUP($D32,'Page 10'!$D$30:$J$41,4,FALSE)*$E32 -> 6452.64937 | H32: =VLOOKUP($D32,'Page 10'!$D$30:$J$41,5,FALSE)*$E32 -> 8025.340219 | I32: =VLOOKUP($D32,'Page 10'!$D$30:$J$41,6,FALSE)*$E32 -> 0 | J32: =VLOOKUP($D32,'Page 10'!$D$30:$J$41,7,FALSE)*$E32 -> 0
A33: SCHMAT-OTHER | B33: SCHMAT | C33: OTHER | D33: DMSC | E33: 1150 | F33: =VLOOKUP($D33,'Page 10'!$D$30:$J$41,3,FALSE)*$E33 -> 0 | G33: =VLOOKUP($D33,'Page 10'!$D$30:$J$41,4,FALSE)*$E33 -> 0 | H33: =VLOOKUP($D33,'Page 10'!$D$30:$J$41,5,FALSE)*$E33 -> 0 | I33: =VLOOKUP($D33,'Page 10'!$D$30:$J$41,6,FALSE)*$E33 -> 0 | J33: =VLOOKUP($D33,'Page 10'!$D$30:$J$41,7,FALSE)*$E33 -> 1150
A34: SCHMAT-OTHER | B34: SCHMAT | C34: OTHER | D34: GP | E34: 795 | F34: =VLOOKUP($D34,'Page 10'!$D$30:$J$41,3,FALSE)*$E34 -> 404.8668328 | G34: =VLOOKUP($D34,'Page 10'!$D$30:$J$41,4,FALSE)*$E34 -> 171.5292555 | H34: =VLOOKUP($D34,'Page 10'!$D$30:$J$41,5,FALSE)*$E34 -> 213.5966973 | I34: =VLOOKUP($D34,'Page 10'!$D$30:$J$41,6,FALSE)*$E34 -> 5.007214436 | J34: =VLOOKUP($D34,'Page 10'!$D$30:$J$41,7,FALSE)*$E34 -> 0
A35: SCHMAT-OTHER | B35: SCHMAT | C35: OTHER | D35: P | E35: 20091 | F35: =VLOOKUP($D35,'Page 10'!$D$30:$J$41,3,FALSE)*$E35 -> 20091 | G35: =VLOOKUP($D35,'Page 10'!$D$30:$J$41,4,FALSE)*$E35 -> 0 | H35: =VLOOKUP($D35,'Page 10'!$D$30:$J$41,5,FALSE)*$E35 -> 0 | I35: =VLOOKUP($D35,'Page 10'!$D$30:$J$41,6,FALSE)*$E35 -> 0 | J35: =VLOOKUP($D35,'Page 10'!$D$30:$J$41,7,FALSE)*$E35 -> 0
A36: SCHMAT-OTHER | B36: SCHMAT | C36: OTHER | D36: PTD | E36: 8675 | F36: =VLOOKUP($D36,'Page 10'!$D$30:$J$41,3,FALSE)*$E36 -> 4405.18665 | G36: =VLOOKUP($D36,'Page 10'!$D$30:$J$41,4,FALSE)*$E36 -> 1902.999602 | H36: =VLOOKUP($D36,'Page 10'!$D$30:$J$41,5,FALSE)*$E36 -> 2366.813748 | I36: =VLOOKUP($D36,'Page 10'!$D$30:$J$41,6,FALSE)*$E36 -> 0 | J36: =VLOOKUP($D36,'Page 10'!$D$30:$J$41,7,FALSE)*$E36 -> 0
A37: SCHMAT-TROJD | B37: SCHMAT | C37: TROJD | D37: P | E37: 1902 | F37: =VLOOKUP($D37,'Page 10'!$D$30:$J$41,3,FALSE)*$E37 -> 1902 | G37: =VLOOKUP($D37,'Page 10'!$D$30:$J$41,4,FALSE)*$E37 -> 0 | H37: =VLOOKUP($D37,'Page 10'!$D$30:$J$41,5,FALSE)*$E37 -> 0 | I37: =VLOOKUP($D37,'Page 10'!$D$30:$J$41,6,FALSE)*$E37 -> 0 | J37: =VLOOKUP($D37,'Page 10'!$D$30:$J$41,7,FALSE)*$E37 -> 0
A38: SCHMAT-SITUS | B38: SCHMAT | C38: SITUS | D38: DMSC | E38: 2742 | F38: =VLOOKUP($D38,'Page 10'!$D$30:$J$41,3,FALSE)*$E38 -> 0 | G38: =VLOOKUP($D38,'Page 10'!$D$30:$J$41,4,FALSE)*$E38 -> 0 | H38: =VLOOKUP($D38,'Page 10'!$D$30:$J$41,5,FALSE)*$E38 -> 0 | I38: =VLOOKUP($D38,'Page 10'!$D$30:$J$41,6,FALSE)*$E38 -> 0 | J38: =VLOOKUP($D38,'Page 10'!$D$30:$J$41,7,FALSE)*$E38 -> 2742
A39: SCHMAT-SITUS | B39: SCHMAT | C39: SITUS | D39: DPW | E39: 2868 | F39: =VLOOKUP($D39,'Page 10'!$D$30:$J$41,3,FALSE)*$E39 -> 0 | G39: =VLOOKUP($D39,'Page 10'!$D$30:$J$41,4,FALSE)*$E39 -> 0 | H39: =VLOOKUP($D39,'Page 10'!$D$30:$J$41,5,FALSE)*$E39 -> 2868 | I39: =VLOOKUP($D39,'Page 10'!$D$30:$J$41,6,FALSE)*$E39 -> 0 | J39: =VLOOKUP($D39,'Page 10'!$D$30:$J$41,7,FALSE)*$E39 -> 0
A40: SCHMAT-SITUS | B40: SCHMAT | C40: SITUS | D40: ESD | E40: 58 | F40: =VLOOKUP($D40,'Page 10'!$D$30:$J$41,3,FALSE)*$E40 -> 17.4 | G40: =VLOOKUP($D40,'Page 10'!$D$30:$J$41,4,FALSE)*$E40 -> 5.8 | H40: =VLOOKUP($D40,'Page 10'!$D$30:$J$41,5,FALSE)*$E40 -> 34.8 | I40: =VLOOKUP($D40,'Page 10'!$D$30:$J$41,6,FALSE)*$E40 -> 0 | J40: =VLOOKUP($D40,'Page 10'!$D$30:$J$41,7,FALSE)*$E40 -> 0
A41: SCHMAT-SITUS | B41: SCHMAT | C41: SITUS | D41: GP | E41: 643 | F41: =VLOOKUP($D41,'Page 10'!$D$30:$J$41,3,FALSE)*$E41 -> 327.4583314 | G41: =VLOOKUP($D41,'Page 10'!$D$30:$J$41,4,FALSE)*$E41 -> 138.7337249 | H41: =VLOOKUP($D41,'Page 10'!$D$30:$J$41,5,FALSE)*$E41 -> 172.7580835 | I41: =VLOOKUP($D41,'Page 10'!$D$30:$J$41,6,FALSE)*$E41 -> 4.049860229 | J41: =VLOOKUP($D41,'Page 10'!$D$30:$J$41,7,FALSE)*$E41 -> 0
A42: SCHMAT-SITUS | B42: SCHMAT | C42: SITUS | D42: LABOR | E42: 5131 | F42: =VLOOKUP($D42,'Page 10'!$D$30:$J$41,3,FALSE)*$E42 -> 2191.599132 | G42: =VLOOKUP($D42,'Page 10'!$D$30:$J$41,4,FALSE)*$E42 -> 351.7330936 | H42: =VLOOKUP($D42,'Page 10'!$D$30:$J$41,5,FALSE)*$E42 -> 1823.240414 | I42: =VLOOKUP($D42,'Page 10'!$D$30:$J$41,6,FALSE)*$E42 -> 764.4273604 | J42: =VLOOKUP($D42,'Page 10'!$D$30:$J$41,7,FALSE)*$E42 -> 0
A43: SCHMAT-SITUS | B43: SCHMAT | C43: SITUS | D43: P | E43: 9475 | F43: =VLOOKUP($D43,'Page 10'!$D$30:$J$41,3,FALSE)*$E43 -> 9475 | G43: =VLOOKUP($D43,'Page 10'!$D$30:$J$41,4,FALSE)*$E43 -> 0 | H43: =VLOOKUP($D43,'Page 10'!$D$30:$J$41,5,FALSE)*$E43 -> 0 | I43: =VLOOKUP($D43,'Page 10'!$D$30:$J$41,6,FALSE)*$E43 -> 0 | J43: =VLOOKUP($D43,'Page 10'!$D$30:$J$41,7,FALSE)*$E43 -> 0
A44: SCHMAT-SITUS | B44: SCHMAT | C44: SITUS | D44: PTD | E44: 49 | F44: =VLOOKUP($D44,'Page 10'!$D$30:$J$41,3,FALSE)*$E44 -> 24.88232229 | G44: =VLOOKUP($D44,'Page 10'!$D$30:$J$41,4,FALSE)*$E44 -> 10.74893147 | H44: =VLOOKUP($D44,'Page 10'!$D$30:$J$41,5,FALSE)*$E44 -> 13.36874624 | I44: =VLOOKUP($D44,'Page 10'!$D$30:$J$41,6,FALSE)*$E44 -> 0 | J44: =VLOOKUP($D44,'Page 10'!$D$30:$J$41,7,FALSE)*$E44 -> 0
A45: SCHMAT-SITUS | B45: SCHMAT | C45: SITUS | D45: T | E45: 462 | F45: =VLOOKUP($D45,'Page 10'!$D$30:$J$41,3,FALSE)*$E45 -> 0 | G45: =VLOOKUP($D45,'Page 10'!$D$30:$J$41,4,FALSE)*$E45 -> 462 | H45: =VLOOKUP($D45,'Page 10'!$D$30:$J$41,5,FALSE)*$E45 -> 0 | I45: =VLOOKUP($D45,'Page 10'!$D$30:$J$41,6,FALSE)*$E45 -> 0 | J45: =VLOOKUP($D45,'Page 10'!$D$30:$J$41,7,FALSE)*$E45 -> 0
B46: Total-SE | E46: =SUMIF($A:$A,"SCHMAT-SE",E:E) -> 32761 | F46: 32751.26119 | G46: 1.165360084 | H46: 6.040749762 | I46: 2.53269638 | J46: 0
A47: =IF(C47="","",B47&"-"&C47) ->  | B47: Total-SNP | E47: =SUMIF($A:$A,"SCHMAT-SNP",E:E) -> 50677 | F47: 25737.31957 | G47: 11108.40286 | H47: 13816.59604 | I47: 14.68153063 | J47: 0
A48: =IF(C48="","",B48&"-"&C48) ->  | B48: Total-SITUS | E48: =SUMIF($A:$A,"SCHMAT-SITUS",E:E) -> 21428 | F48: 12036.33979 | G48: 969.0157499 | H48: 4912.167243 | I48: 768.4772206 | J48: 2742
B49: Total-SO | E49: =SUMIF($A:$A,"SCHMAT-SO",E:E) -> 45281 | F49: 21713.83985 | G49: 7540.273081 | H49: 13663.13644 | I49: 2363.750633 | J49: 0
A50: =IF(C50="","",B50&"-"&C50) ->  | B50: Total-SCHMAT | E50: =SUMIF($B:$B,"SCHMAT",E:E) -> 808190 | F50: 426243.592 | G50: 144813.843 | H50: 225189.2631 | I50: 8051.301882 | J50: 3892
B51: SCHMAT-SE | E51: =SUM(F51:J51) -> 1 | F51: =IF(ISERROR(F46/$E46)," ",(F46/$E46)) -> 0.9997027317 | G51: 3.557156631e-05 | H51: 0.0001843884424 | I51: 7.730827448e-05 | J51: 0
A52: =IF(C52="","",B52&"-"&C52) ->  | B52: SCHMAT-SNP | E52: =SUM(F52:J52) -> 1 | F52: 0.5078698338 | G52: 0.219200088 | H52: 0.2726403702 | I52: 0.0002897079667 | J52: 0
A53: =IF(C53="","",B53&"-"&C53) ->  | B53: SCHMAT-SITUS | E53: =SUM(F53:J53) -> 1 | F53: 0.5617108356 | G53: 0.04522194091 | H53: 0.2292405844 | I53: 0.03586322665 | J53: 0.1279634124
B54: SCHMAT-SO | E54: =SUM(F54:J54) -> 1 | F54: 0.4795353426 | G54: 0.166521788 | H54: 0.301741049 | I54: 0.05220182049 | J54: 0
A55: =IF(C55="","",B55&"-"&C55) ->  | B55: SCHMAT FACTOR | E55: =SUM(F55:J55) -> 1 | F55: 0.5274051795 | G55: 0.1791829187 | H55: 0.2786340627 | I55: 0.009962139945 | J55: 0.004815699279

Sheet Page 9
B1: =+'Page 1'!A1 -> PacifiCorp
B2: =+'Page 1'!A2 -> 12 Months Ended June 2011
B3: Schedule M
B4: Primary | C4: PITA
B5: Account | C5: Factor | D5: Function | E5: Amount | F5: Production | G5: Transmission | H5: Poles & Wires | I5: Customers | J5: Miscellaneous
A6: =IF(C6="","",B6&"-"&C6) -> SCHMAF-DGP | B6: SCHMAF | C6: DGP | D6: P | E6: 0 | F6: =VLOOKUP($D6,'Page 10'!$D$30:$J$41,3,FALSE)*$E6 -> 0 | G6: =VLOOKUP($D6,'Page 10'!$D$30:$J$41,4,FALSE)*$E6 -> 0 | H6: =VLOOKUP($D6,'Page 10'!$D$30:$J$41,5,FALSE)*$E6 -> 0 | I6: =VLOOKUP($D6,'Page 10'!$D$30:$J$41,6,FALSE)*$E6 -> 0 | J6: =VLOOKUP($D6,'Page 10'!$D$30:$J$41,7,FALSE)*$E6 -> 0
A7: =IF(C7="","",B7&"-"&C7) -> SCHMAF-TROJP | B7: SCHMAF | C7: TROJP | D7: P | E7: 0 | F7: =VLOOKUP($D7,'Page 10'!$D$30:$J$41,3,FALSE)*$E7 -> 0 | G7: =VLOOKUP($D7,'Page 10'!$D$30:$J$41,4,FALSE)*$E7 -> 0 | H7: =VLOOKUP($D7,'Page 10'!$D$30:$J$41,5,FALSE)*$E7 -> 0 | I7: =VLOOKUP($D7,'Page 10'!$D$30:$J$41,6,FALSE)*$E7 -> 0 | J7: =VLOOKUP($D7,'Page 10'!$D$30:$J$41,7,FALSE)*$E7 -> 0
A8: =IF(C8="","",B8&"-"&C8) ->  | B8: Total-SCHMAF | E8: =SUMIF($A$6:$A$59,"SCHMAF",E$6:E$59) -> 0 | F8: 0 | G8: 0 | H8: 0 | I8: 0 | J8: 0
A9: =IF(C9="","",B9&"-"&C9) ->  | B9: SCHMAF FACTOR | E9: =SUM(F9:J9) -> 0 | F9: =IF(ISERROR(F8/$E8)," ",(F8/$E8)) ->  | G9: =IF(ISERROR(G8/$E8)," ",(G8/$E8)) ->  | H9: =IF(ISERROR(H8/$E8)," ",(H8/$E8)) ->  | I9: =IF(ISERROR(I8/$E8)," ",(I8/$E8)) ->  | J9: =IF(ISERROR(J8/$E8)," ",(J8/$E8)) -> 
A11: =IF(C11="","",B11&"-"&C11) ->  | B11: Total-SCHMA | E11: =SUM(E8,'Page 8'!E50,'Page 8'!E14) -> 822019 | F11: =SUM(F8,'Page 8'!F50,'Page 8'!F14) -> 432322.2808 | G11: =SUM(G8,'Page 8'!G50,'Page 8'!G14) -> 145902.0466 | H11: =SUM(H8,'Page 8'!H50,'Page 8'!H14) -> 229964.0649 | I11: =SUM(I8,'Page 8'!I50,'Page 8'!I14) -> 9938.607632 | J11: =SUM(J8,'Page 8'!J50,'Page 8'!J14) -> 3892
A12: =IF(C12="","",B12&"-"&C12) ->  | B12: SCHMA FACTOR | E12: =SUM(F12:J12) -> 1 | F12: =IF(ISERROR(F11/$E11)," ",(F11/$E11)) -> 0.5259273579 | G12: =IF(ISERROR(G11/$E11)," ",(G11/$E11)) -> 0.1774923045 | H12: =IF(ISERROR(H11/$E11)," ",(H11/$E11)) -> 0.2797551698 | I12: =IF(ISERROR(I11/$E11)," ",(I11/$E11)) -> 0.01209048408 | J12: =IF(ISERROR(J11/$E11)," ",(J11/$E11)) -> 0.004734683748
A14: =IF(C14="","",B14&"-"&C14) ->  | B14: DEDUCTIONS
A15: SCHMDP-SCHMDEXP | B15: SCHMDP | C15: SCHMDEXP | D15: LABOR | E15: 109 | F15: =VLOOKUP($D15,'Page 10'!$D$30:$J$41,3,FALSE)*$E15 -> 46.55706596 | G15: =VLOOKUP($D15,'Page 10'!$D$30:$J$41,4,FALSE)*$E15 -> 7.472014656 | H15: =VLOOKUP($D15,'Page 10'!$D$30:$J$41,5,FALSE)*$E15 -> 38.73186612 | I15: =VLOOKUP($D15,'Page 10'!$D$30:$J$41,6,FALSE)*$E15 -> 16.23905326 | J15: =VLOOKUP($D15,'Page 10'!$D$30:$J$41,7,FALSE)*$E15 -> 0
A16: SCHMDP-SE | B16: SCHMDP | C16: SE | D16: P | E16: 574 | F16: =VLOOKUP($D16,'Page 10'!$D$30:$J$41,3,FALSE)*$E16 -> 574 | G16: =VLOOKUP($D16,'Page 10'!$D$30:$J$41,4,FALSE)*$E16 -> 0 | H16: =VLOOKUP($D16,'Page 10'!$D$30:$J$41,5,FALSE)*$E16 -> 0 | I16: =VLOOKUP($D16,'Page 10'!$D$30:$J$41,6,FALSE)*$E16 -> 0 | J16: =VLOOKUP($D16,'Page 10'!$D$30:$J$41,7,FALSE)*$E16 -> 0
A17: SCHMDP-SG | B17: SCHMDP | C17: SG | D17: P | E17: 0 | F17: =VLOOKUP($D17,'Page 10'!$D$30:$J$41,3,FALSE)*$E17 -> 0 | G17: =VLOOKUP($D17,'Page 10'!$D$30:$J$41,4,FALSE)*$E17 -> 0 | H17: =VLOOKUP($D17,'Page 10'!$D$30:$J$41,5,FALSE)*$E17 -> 0 | I17: =VLOOKUP($D17,'Page 10'!$D$30:$J$41,6,FALSE)*$E17 -> 0 | J17: =VLOOKUP($D17,'Page 10'!$D$30:$J$41,7,FALSE)*$E17 -> 0
A18: SCHMDP-SNP | B18: SCHMDP | C18: SNP | D18: PTD | E18: 361 | F18: =VLOOKUP($D18,'Page 10'!$D$30:$J$41,3,FALSE)*$E18 -> 183.3167009 | G18: =VLOOKUP($D18,'Page 10'!$D$30:$J$41,4,FALSE)*$E18 -> 79.19110735 | H18: =VLOOKUP($D18,'Page 10'!$D$30:$J$41,5,FALSE)*$E18 -> 98.49219171 | I18: =VLOOKUP($D18,'Page 10'!$D$30:$J$41,6,FALSE)*$E18 -> 0 | J18: =VLOOKUP($D18,'Page 10'!$D$30:$J$41,7,FALSE)*$E18 -> 0
A19: SCHMDP-SO | B19: SCHMDP | C19: SO | D19: LABOR | E19: 20812 | F19: =VLOOKUP($D19,'Page 10'!$D$30:$J$41,3,FALSE)*$E19 -> 8889.409695 | G19: =VLOOKUP($D19,'Page 10'!$D$30:$J$41,4,FALSE)*$E19 -> 1426.674945 | H19: =VLOOKUP($D19,'Page 10'!$D$30:$J$41,5,FALSE)*$E19 -> 7395.299062 | I19: =VLOOKUP($D19,'Page 10'!$D$30:$J$41,6,FALSE)*$E19 -> 3100.616298 | J19: =VLOOKUP($D19,'Page 10'!$D$30:$J$41,7,FALSE)*$E19 -> 0
A20: SCHMDP-SITUS | B20: SCHMDP | C20: SITUS | D20: PTD | E20: 0 | F20: =VLOOKUP($D20,'Page 10'!$D$30:$J$41,3,FALSE)*$E20 -> 0 | G20: =VLOOKUP($D20,'Page 10'!$D$30:$J$41,4,FALSE)*$E20 -> 0 | H20: =VLOOKUP($D20,'Page 10'!$D$30:$J$41,5,FALSE)*$E20 -> 0 | I20: =VLOOKUP($D20,'Page 10'!$D$30:$J$41,6,FALSE)*$E20 -> 0 | J20: =VLOOKUP($D20,'Page 10'!$D$30:$J$41,7,FALSE)*$E20 -> 0
B21: Total-SO | E21: =SUMIF($A$6:$A$59,"SCHMDP-SO",E$6:E$59) -> 20812 | F21: 8889.409695 | G21: 1426.674945 | H21: 7395.299062 | I21: 3100.616298 | J21: 0
A22: =IF(C22="","",B22&"-"&C22) ->  | B22: Total-SCHMDP | E22: =SUMIF($B$6:$B$59,"SCHMDP",E$6:E$59) -> 21856 | F22: 9693.283462 | G22: 1513.338067 | H22: 7532.52312 | I22: 3116.855351 | J22: 0
A23: =IF(C23="","",B23&"-"&C23) ->  | B23: SCHMDP-SO | E23: =SUM(F23:J23) -> 1 | F23: =IF(ISERROR(F21/$E21)," ",(F21/$E21)) -> 0.4271290455 | G23: 0.06855059318 | H23: 0.3553382213 | I23: 0.14898214 | J23: 0
A24: =IF(C24="","",B24&"-"&C24) ->  | B24: SCHMDP FACTOR | E24: =SUM(F24:J24) -> 1 | F24: 0.443506747 | G24: 0.06924130981 | H24: 0.3446432613 | I24: 0.1426086819 | J24: 0
A26: =IF(C26="","",B26&"-"&C26) -> SCHMDT-BADDEBT | B26: SCHMDT | C26: BADDEBT | D26: CUST | E26: 0 | F26: =VLOOKUP($D26,'Page 10'!$D$30:$J$41,3,FALSE)*$E26 -> 0 | G26: =VLOOKUP($D26,'Page 10'!$D$30:$J$41,4,FALSE)*$E26 -> 0 | H26: =VLOOKUP($D26,'Page 10'!$D$30:$J$41,5,FALSE)*$E26 -> 0 | I26: =VLOOKUP($D26,'Page 10'!$D$30:$J$41,6,FALSE)*$E26 -> 0 | J26: =VLOOKUP($D26,'Page 10'!$D$30:$J$41,7,FALSE)*$E26 -> 0
A27: SCHMDT-CN | B27: SCHMDT | C27: CN | D27: CUST | E27: 48 | F27: =VLOOKUP($D27,'Page 10'!$D$30:$J$41,3,FALSE)*$E27 -> 0 | G27: =VLOOKUP($D27,'Page 10'!$D$30:$J$41,4,FALSE)*$E27 -> 0 | H27: =VLOOKUP($D27,'Page 10'!$D$30:$J$41,5,FALSE)*$E27 -> 0 | I27: =VLOOKUP($D27,'Page 10'!$D$30:$J$41,6,FALSE)*$E27 -> 48 | J27: =VLOOKUP($D27,'Page 10'!$D$30:$J$41,7,FALSE)*$E27 -> 0
A28: SCHMDT-GPS | B28: SCHMDT | C28: GPS | D28: GP | E28: 4908 | F28: =VLOOKUP($D28,'Page 10'!$D$30:$J$41,3,FALSE)*$E28 -> 2499.479768 | G28: =VLOOKUP($D28,'Page 10'!$D$30:$J$41,4,FALSE)*$E28 -> 1058.950422 | H28: =VLOOKUP($D28,'Page 10'!$D$30:$J$41,5,FALSE)*$E28 -> 1318.657346 | I28: =VLOOKUP($D28,'Page 10'!$D$30:$J$41,6,FALSE)*$E28 -> 30.91246346 | J28: =VLOOKUP($D28,'Page 10'!$D$30:$J$41,7,FALSE)*$E28 -> 0
A29: SCHMDT-GPS | B29: SCHMDT | C29: GPS | D29: P | E29: 0 | F29: =VLOOKUP($D29,'Page 10'!$D$30:$J$41,3,FALSE)*$E29 -> 0 | G29: =VLOOKUP($D29,'Page 10'!$D$30:$J$41,4,FALSE)*$E29 -> 0 | H29: =VLOOKUP($D29,'Page 10'!$D$30:$J$41,5,FALSE)*$E29 -> 0 | I29: =VLOOKUP($D29,'Page 10'!$D$30:$J$41,6,FALSE)*$E29 -> 0 | J29: =VLOOKUP($D29,'Page 10'!$D$30:$J$41,7,FALSE)*$E29 -> 0
A30: SCHMDT-GPS | B30: SCHMDT | C30: GPS | D30: PTD | E30: 63651 | F30: =VLOOKUP($D30,'Page 10'!$D$30:$J$41,3,FALSE)*$E30 -> 32322.13665 | G30: =VLOOKUP($D30,'Page 10'!$D$30:$J$41,4,FALSE)*$E30 -> 13962.86198 | H30: =VLOOKUP($D30,'Page 10'!$D$30:$J$41,5,FALSE)*$E30 -> 17366.00137 | I30: =VLOOKUP($D30,'Page 10'!$D$30:$J$41,6,FALSE)*$E30 -> 0 | J30: =VLOOKUP($D30,'Page 10'!$D$30:$J$41,7,FALSE)*$E30 -> 0
A31: SCHMDT-SG | B31: SCHMDT | C31: SG | D31: P | E31: 62164 | F31: =VLOOKUP($D31,'Page 10'!$D$30:$J$41,3,FALSE)*$E31 -> 62164 | G31: =VLOOKUP($D31,'Page 10'!$D$30:$J$41,4,FALSE)*$E31 -> 0 | H31: =VLOOKUP($D31,'Page 10'!$D$30:$J$41,5,FALSE)*$E31 -> 0 | I31: =VLOOKUP($D31,'Page 10'!$D$30:$J$41,6,FALSE)*$E31 -> 0 | J31: =VLOOKUP($D31,'Page 10'!$D$30:$J$41,7,FALSE)*$E31 -> 0
A32: SCHMDT-SG | B32: SCHMDT | C32: SG | D32: GP | E32: 0 | F32: =VLOOKUP($D32,'Page 10'!$D$30:$J$41,3,FALSE)*$E32 -> 0 | G32: =VLOOKUP($D32,'Page 10'!$D$30:$J$41,4,FALSE)*$E32 -> 0 | H32: =VLOOKUP($D32,'Page 10'!$D$30:$J$41,5,FALSE)*$E32 -> 0 | I32: =VLOOKUP($D32,'Page 10'!$D$30:$J$41,6,FALSE)*$E32 -> 0 | J32: =VLOOKUP($D32,'Page 10'!$D$30:$J$41,7,FALSE)*$E32 -> 0
A33: SCHMDT-SE | B33: SCHMDT | C33: SE | D33: P | E33: 48399 | F33: =VLOOKUP($D33,'Page 10'!$D$30:$J$41,3,FALSE)*$E33 -> 48399 | G33: =VLOOKUP($D33,'Page 10'!$D$30:$J$41,4,FALSE)*$E33 -> 0 | H33: =VLOOKUP($D33,'Page 10'!$D$30:$J$41,5,FALSE)*$E33 -> 0 | I33: =VLOOKUP($D33,'Page 10'!$D$30:$J$41,6,FALSE)*$E33 -> 0 | J33: =VLOOKUP($D33,'Page 10'!$D$30:$J$41,7,FALSE)*$E33 -> 0
A34: SCHMDT-SNP | B34: SCHMDT | C34: SNP | D34: PTD | E34: 88835 | F34: =VLOOKUP($D34,'Page 10'!$D$30:$J$41,3,FALSE)*$E34 -> 45110.6347 | G34: =VLOOKUP($D34,'Page 10'!$D$30:$J$41,4,FALSE)*$E34 -> 19487.37402 | H34: =VLOOKUP($D34,'Page 10'!$D$30:$J$41,5,FALSE)*$E34 -> 24236.99128 | I34: =VLOOKUP($D34,'Page 10'!$D$30:$J$41,6,FALSE)*$E34 -> 0 | J34: =VLOOKUP($D34,'Page 10'!$D$30:$J$41,7,FALSE)*$E34 -> 0
A35: SCHMDT-SO | B35: SCHMDT | C35: SO | D35: ESD | E35: 6710 | F35: =VLOOKUP($D35,'Page 10'!$D$30:$J$41,3,FALSE)*$E35 -> 2013 | G35: =VLOOKUP($D35,'Page 10'!$D$30:$J$41,4,FALSE)*$E35 -> 671 | H35: =VLOOKUP($D35,'Page 10'!$D$30:$J$41,5,FALSE)*$E35 -> 4026 | I35: =VLOOKUP($D35,'Page 10'!$D$30:$J$41,6,FALSE)*$E35 -> 0 | J35: =VLOOKUP($D35,'Page 10'!$D$30:$J$41,7,FALSE)*$E35 -> 0
A36: SCHMDT-SO | B36: SCHMDT | C36: SO | D36: GP | E36: 10615 | F36: =VLOOKUP($D36,'Page 10'!$D$30:$J$41,3,FALSE)*$E36 -> 5405.863434 | G36: =VLOOKUP($D36,'Page 10'!$D$30:$J$41,4,FALSE)*$E36 -> 2290.293141 | H36: =VLOOKUP($D36,'Page 10'!$D$30:$J$41,5,FALSE)*$E36 -> 2851.98609 | I36: =VLOOKUP($D36,'Page 10'!$D$30:$J$41,6,FALSE)*$E36 -> 66.85733489 | J36: =VLOOKUP($D36,'Page 10'!$D$30:$J$41,7,FALSE)*$E36 -> 0
A37: SCHMDT-SO | B37: SCHMDT | C37: SO | D37: LABOR | E37: 279 | F37: =VLOOKUP($D37,'Page 10'!$D$30:$J$41,3,FALSE)*$E37 -> 119.1690037 | G37: =VLOOKUP($D37,'Page 10'!$D$30:$J$41,4,FALSE)*$E37 -> 19.1256155 | H37: =VLOOKUP($D37,'Page 10'!$D$30:$J$41,5,FALSE)*$E37 -> 99.13936375 | I37: =VLOOKUP($D37,'Page 10'!$D$30:$J$41,6,FALSE)*$E37 -> 41.56601706 | J37: =VLOOKUP($D37,'Page 10'!$D$30:$J$41,7,FALSE)*$E37 -> 0
A38: SCHMDT-SO | B38: SCHMDT | C38: SO | D38: PTD | E38: 5740 | F38: =VLOOKUP($D38,'Page 10'!$D$30:$J$41,3,FALSE)*$E38 -> 2914.786325 | G38: =VLOOKUP($D38,'Page 10'!$D$30:$J$41,4,FALSE)*$E38 -> 1259.160543 | H38: =VLOOKUP($D38,'Page 10'!$D$30:$J$41,5,FALSE)*$E38 -> 1566.053131 | I38: =VLOOKUP($D38,'Page 10'!$D$30:$J$41,6,FALSE)*$E38 -> 0 | J38: =VLOOKUP($D38,'Page 10'!$D$30:$J$41,7,FALSE)*$E38 -> 0
A39: SCHMDT-OTHER | B39: SCHMDT | C39: OTHER | D39: CUST | E39: 604 | F39: =VLOOKUP($D39,'Page 10'!$D$30:$J$41,3,FALSE)*$E39 -> 0 | G39: =VLOOKUP($D39,'Page 10'!$D$30:$J$41,4,FALSE)*$E39 -> 0 | H39: =VLOOKUP($D39,'Page 10'!$D$30:$J$41,5,FALSE)*$E39 -> 0 | I39: =VLOOKUP($D39,'Page 10'!$D$30:$J$41,6,FALSE)*$E39 -> 604 | J39: =VLOOKUP($D39,'Page 10'!$D$30:$J$41,7,FALSE)*$E39 -> 0
A40: SCHMDT-OTHER | B40: SCHMDT | C40: OTHER | D40: DMSC | E40: 52131 | F40: =VLOOKUP($D40,'Page 10'!$D$30:$J$41,3,FALSE)*$E40 -> 0 | G40: =VLOOKUP($D40,'Page 10'!$D$30:$J$41,4,FALSE)*$E40 -> 0 | H40: =VLOOKUP($D40,'Page 10'!$D$30:$J$41,5,FALSE)*$E40 -> 0 | I40: =VLOOKUP($D40,'Page 10'!$D$30:$J$41,6,FALSE)*$E40 -> 0 | J40: =VLOOKUP($D40,'Page 10'!$D$30:$J$41,7,FALSE)*$E40 -> 52131
A41: SCHMDT-OTHER | B41: SCHMDT | C41: OTHER | D41: DPW | E41: 386 | F41: =VLOOKUP($D41,'Page 10'!$D$30:$J$41,3,FALSE)*$E41 -> 0 | G41: =VLOOKUP($D41,'Page 10'!$D$30:$J$41,4,FALSE)*$E41 -> 0 | H41: =VLOOKUP($D41,'Page 10'!$D$30:$J$41,5,FALSE)*$E41 -> 386 | I41: =VLOOKUP($D41,'Page 10'!$D$30:$J$41,6,FALSE)*$E41 -> 0 | J41: =VLOOKUP($D41,'Page 10'!$D$30:$J$41,7,FALSE)*$E41 -> 0
A42: SCHMDT-OTHER | B42: SCHMDT | C42: OTHER | D42: LABOR | E42: 2969 | F42: =VLOOKUP($D42,'Page 10'!$D$30:$J$41,3,FALSE)*$E42 -> 1268.146136 | G42: =VLOOKUP($D42,'Page 10'!$D$30:$J$41,4,FALSE)*$E42 -> 203.5267111 | H42: =VLOOKUP($D42,'Page 10'!$D$30:$J$41,5,FALSE)*$E42 -> 1054.999179 | I42: =VLOOKUP($D42,'Page 10'!$D$30:$J$41,6,FALSE)*$E42 -> 442.3279737 | J42: =VLOOKUP($D42,'Page 10'!$D$30:$J$41,7,FALSE)*$E42 -> 0
A43: SCHMDT-OTHER | B43: SCHMDT | C43: OTHER | D43: P | E43: 42312 | F43: =VLOOKUP($D43,'Page 10'!$D$30:$J$41,3,FALSE)*$E43 -> 42312 | G43: =VLOOKUP($D43,'Page 10'!$D$30:$J$41,4,FALSE)*$E43 -> 0 | H43: =VLOOKUP($D43,'Page 10'!$D$30:$J$41,5,FALSE)*$E43 -> 0 | I43: =VLOOKUP($D43,'Page 10'!$D$30:$J$41,6,FALSE)*$E43 -> 0 | J43: =VLOOKUP($D43,'Page 10'!$D$30:$J$41,7,FALSE)*$E43 -> 0
A44: SCHMDT-OTHER | B44: SCHMDT | C44: OTHER | D44: PT | E44: 15725 | F44: =VLOOKUP($D44,'Page 10'!$D$30:$J$41,3,FALSE)*$E44 -> 10981.21668 | G44: =VLOOKUP($D44,'Page 10'!$D$30:$J$41,4,FALSE)*$E44 -> 4743.783323 | H44: =VLOOKUP($D44,'Page 10'!$D$30:$J$41,5,FALSE)*$E44 -> 0 | I44: =VLOOKUP($D44,'Page 10'!$D$30:$J$41,6,FALSE)*$E44 -> 0 | J44: =VLOOKUP($D44,'Page 10'!$D$30:$J$41,7,FALSE)*$E44 -> 0
A45: SCHMDT-OTHER | B45: SCHMDT | C45: OTHER | D45: TD | E45: 1230 | F45: =VLOOKUP($D45,'Page 10'!$D$30:$J$41,3,FALSE)*$E45 -> 0 | G45: =VLOOKUP($D45,'Page 10'!$D$30:$J$41,4,FALSE)*$E45 -> 548.1948081 | H45: =VLOOKUP($D45,'Page 10'!$D$30:$J$41,5,FALSE)*$E45 -> 681.8051919 | I45: =VLOOKUP($D45,'Page 10'!$D$30:$J$41,6,FALSE)*$E45 -> 0 | J45: =VLOOKUP($D45,'Page 10'!$D$30:$J$41,7,FALSE)*$E45 -> 0
A46: SCHMDT-TAXDEPR | B46: SCHMDT | C46: TAXDEPR | D46: TAXDEPR | E46: 2847400 | F46: =VLOOKUP($D46,'Page 10'!$D$30:$J$41,3,FALSE)*$E46 -> 1644300.924 | G46: =VLOOKUP($D46,'Page 10'!$D$30:$J$41,4,FALSE)*$E46 -> 557824.2356 | H46: =VLOOKUP($D46,'Page 10'!$D$30:$J$41,5,FALSE)*$E46 -> 632414.4458 | I46: =VLOOKUP($D46,'Page 10'!$D$30:$J$41,6,FALSE)*$E46 -> 12860.39417 | J46: =VLOOKUP($D46,'Page 10'!$D$30:$J$41,7,FALSE)*$E46 -> 0
A47: SCHMDT-SITUS | B47: SCHMDT | C47: SITUS | D47: DMSC | E47: 591 | F47: =VLOOKUP($D47,'Page 10'!$D$30:$J$41,3,FALSE)*$E47 -> 0 | G47: =VLOOKUP($D47,'Page 10'!$D$30:$J$41,4,FALSE)*$E47 -> 0 | H47: =VLOOKUP($D47,'Page 10'!$D$30:$J$41,5,FALSE)*$E47 -> 0 | I47: =VLOOKUP($D47,'Page 10'!$D$30:$J$41,6,FALSE)*$E47 -> 0 | J47: =VLOOKUP($D47,'Page 10'!$D$30:$J$41,7,FALSE)*$E47 -> 591
A48: SCHMDT-SITUS | B48: SCHMDT | C48: SITUS | D48: DPW | E48: 41 | F48: =VLOOKUP($D48,'Page 10'!$D$30:$J$41,3,FALSE)*$E48 -> 0 | G48: =VLOOKUP($D48,'Page 10'!$D$30:$J$41,4,FALSE)*$E48 -> 0 | H48: =VLOOKUP($D48,'Page 10'!$D$30:$J$41,5,FALSE)*$E48 -> 41 | I48: =VLOOKUP($D48,'Page 10'!$D$30:$J$41,6,FALSE)*$E48 -> 0 | J48: =VLOOKUP($D48,'Page 10'!$D$30:$J$41,7,FALSE)*$E48 -> 0
A49: SCHMDT-SITUS | B49: SCHMDT | C49: SITUS | D49: GP | E49: 26 | F49: =VLOOKUP($D49,'Page 10'!$D$30:$J$41,3,FALSE)*$E49 -> 13.24092786 | G49: =VLOOKUP($D49,'Page 10'!$D$30:$J$41,4,FALSE)*$E49 -> 5.609761814 | H49: =VLOOKUP($D49,'Page 10'!$D$30:$J$41,5,FALSE)*$E49 -> 6.985552365 | I49: =VLOOKUP($D49,'Page 10'!$D$30:$J$41,6,FALSE)*$E49 -> 0.1637579564 | J49: =VLOOKUP($D49,'Page 10'!$D$30:$J$41,7,FALSE)*$E49 -> 0
A50: SCHMDT-SITUS | B50: SCHMDT | C50: SITUS | D50: LABOR | E50: 1593 | F50: =VLOOKUP($D50,'Page 10'!$D$30:$J$41,3,FALSE)*$E50 -> 680.4165695 | G50: =VLOOKUP($D50,'Page 10'!$D$30:$J$41,4,FALSE)*$E50 -> 109.2010949 | H50: =VLOOKUP($D50,'Page 10'!$D$30:$J$41,5,FALSE)*$E50 -> 566.0537866 | I50: =VLOOKUP($D50,'Page 10'!$D$30:$J$41,6,FALSE)*$E50 -> 237.328549 | J50: =VLOOKUP($D50,'Page 10'!$D$30:$J$41,7,FALSE)*$E50 -> 0
A51: SCHMDT-SITUS | B51: SCHMDT | C51: SITUS | D51: P | E51: 7399 | F51: =VLOOKUP($D51,'Page 10'!$D$30:$J$41,3,FALSE)*$E51 -> 7399 | G51: =VLOOKUP($D51,'Page 10'!$D$30:$J$41,4,FALSE)*$E51 -> 0 | H51: =VLOOKUP($D51,'Page 10'!$D$30:$J$41,5,FALSE)*$E51 -> 0 | I51: =VLOOKUP($D51,'Page 10'!$D$30:$J$41,6,FALSE)*$E51 -> 0 | J51: =VLOOKUP($D51,'Page 10'!$D$30:$J$41,7,FALSE)*$E51 -> 0
A52: SCHMDT-SITUS | B52: SCHMDT | C52: SITUS | D52: PTD | E52: 0 | F52: =VLOOKUP($D52,'Page 10'!$D$30:$J$41,3,FALSE)*$E52 -> 0 | G52: =VLOOKUP($D52,'Page 10'!$D$30:$J$41,4,FALSE)*$E52 -> 0 | H52: =VLOOKUP($D52,'Page 10'!$D$30:$J$41,5,FALSE)*$E52 -> 0 | I52: =VLOOKUP($D52,'Page 10'!$D$30:$J$41,6,FALSE)*$E52 -> 0 | J52: =VLOOKUP($D52,'Page 10'!$D$30:$J$41,7,FALSE)*$E52 -> 0
B53: Total-GPS | E53: =SUMIF($A$6:$A$59,"SCHMDT-GPS",E$6:E$59) -> 68559 | F53: 34821.61642 | G53: 15021.8124 | H53: 18684.65872 | I53: 30.91246346 | J53: 0
B54: Total-CN | E54: =SUMIF($A$6:$A$59,"SCHMDT-CN",E$6:E$59) -> 48 | F54: 0 | G54: 0 | H54: 0 | I54: 48 | J54: 0
B55: Total-SG | E55: =SUMIF($A$6:$A$59,"SCHMDT-SG",E$6:E$59) -> 62164 | F55: 62164 | G55: 0 | H55: 0 | I55: 0 | J55: 0
B56: Total-SE | E56: =SUMIF($A$6:$A$59,"SCHMDT-SE",E$6:E$59) -> 48399 | F56: 48399 | G56: 0 | H56: 0 | I56: 0 | J56: 0
B57: Total-SNP | E57: =SUMIF($A$6:$A$59,"SCHMDT-SNP",E$6:E$59) -> 88835 | F57: 45110.6347 | G57: 19487.37402 | H57: 24236.99128 | I57: 0 | J57: 0
B58: Total SO | E58: =SUMIF($A$6:$A$59,"SCHMDT-SO",E$6:E$59) -> 23344 | F58: 10452.81876 | G58: 4239.5793 | H58: 8543.178586 | I58: 108.423352 | J58: 0
B59: Total OTHER | E59: =SUMIF($A$6:$A$59,"SCHMDT-OTHER",E$6:E$59) -> 115357 | F59: 54561.36281 | G59: 5495.504842 | H59: 2122.804371 | I59: 1046.327974 | J59: 52131

Sheet Page 10
B1: =+'Page 1'!A1 -> PacifiCorp
B2: =+'Page 1'!A2 -> 12 Months Ended June 2011
B3: Schedule M
B4: Primary | C4: PITA
B5: Account | C5: Factor | D5: Function | E5: Amount | F5: Production | G5: Transmission | H5: Poles & Wires | I5: Customers | J5: Miscellaneous
A6: =IF(C6="","",B6&"-"&C6) ->  | B6: Total TAXDEPR | E6: =+'Page 9'!E46 -> 2847400 | F6: =+'Page 9'!F46 -> 1644300.924 | G6: =+'Page 9'!G46 -> 557824.2356 | H6: =+'Page 9'!H46 -> 632414.4458 | I6: =+'Page 9'!I46 -> 12860.39417 | J6: =+'Page 9'!J46 -> 0
B7: Total-SITUS | E7: =SUM('Page 9'!E47:E52)+SUM('Page 9'!E27) -> 9698 | F7: =SUM('Page 9'!F47:F52)+SUM('Page 9'!F27) -> 8092.657497 | G7: =SUM('Page 9'!G47:G52)+SUM('Page 9'!G27) -> 114.8108567 | H7: =SUM('Page 9'!H47:H52)+SUM('Page 9'!H27) -> 614.0393389 | I7: =SUM('Page 9'!I47:I52)+SUM('Page 9'!I27) -> 285.492307 | J7: =SUM('Page 9'!J47:J52)+SUM('Page 9'!J27) -> 591
B8: Total SCHMDT | E8: =SUM('Page 9'!E26:E52) -> 3263756 | F8: =SUM('Page 9'!F26:F52) -> 1907903.015 | G8: =SUM('Page 9'!G26:G52) -> 602183.317 | H8: =SUM('Page 9'!H26:H52) -> 686616.1181 | I8: =SUM('Page 9'!I26:I52) -> 14331.55026 | J8: =SUM('Page 9'!J26:J52) -> 52722
B9: SCHMDT-GPS | E9: =SUM(F9:J9) -> 1 | F9: =IF(ISERROR('Page 9'!F53/'Page 9'!$E53)," ",('Page 9'!F53/'Page 9'!$E53)) -> 0.5079072977 | G9: =IF(ISERROR('Page 9'!G53/'Page 9'!$E53)," ",('Page 9'!G53/'Page 9'!$E53)) -> 0.2191078108 | H9: =IF(ISERROR('Page 9'!H53/'Page 9'!$E53)," ",('Page 9'!H53/'Page 9'!$E53)) -> 0.2725340031 | I9: =IF(ISERROR('Page 9'!I53/'Page 9'!$E53)," ",('Page 9'!I53/'Page 9'!$E53)) -> 0.0004508884824 | J9: =IF(ISERROR('Page 9'!J53/'Page 9'!$E53)," ",('Page 9'!J53/'Page 9'!$E53)) -> 0
B10: SCHMDT-CN | E10: 1 | F10: =IF(ISERROR('Page 9'!F54/'Page 9'!$E54)," ",('Page 9'!F54/'Page 9'!$E54)) -> 0 | G10: =IF(ISERROR('Page 9'!G54/'Page 9'!$E54)," ",('Page 9'!G54/'Page 9'!$E54)) -> 0 | H10: =IF(ISERROR('Page 9'!H54/'Page 9'!$E54)," ",('Page 9'!H54/'Page 9'!$E54)) -> 0 | I10: =IF(ISERROR('Page 9'!I54/'Page 9'!$E54)," ",('Page 9'!I54/'Page 9'!$E54)) -> 1 | J10: =IF(ISERROR('Page 9'!J54/'Page 9'!$E54)," ",('Page 9'!J54/'Page 9'!$E54)) -> 0
B11: SCHMDT-SG | E11: 1 | F11: =IF(ISERROR('Page 9'!F55/'Page 9'!$E55)," ",('Page 9'!F55/'Page 9'!$E55)) -> 1 | G11: =IF(ISERROR('Page 9'!G55/'Page 9'!$E55)," ",('Page 9'!G55/'Page 9'!$E55)) -> 0 | H11: =IF(ISERROR('Page 9'!H55/'Page 9'!$E55)," ",('Page 9'!H55/'Page 9'!$E55)) -> 0 | I11: =IF(ISERROR('Page 9'!I55/'Page 9'!$E55)," ",('Page 9'!I55/'Page 9'!$E55)) -> 0 | J11: =IF(ISERROR('Page 9'!J55/'Page 9'!$E55)," ",('Page 9'!J55/'Page 9'!$E55)) -> 0
B12: SCHMDT-SE | E12: 1 | F12: =IF(ISERROR('Page 9'!F56/'Page 9'!$E56)," ",('Page 9'!F56/'Page 9'!$E56)) -> 1 | G12: =IF(ISERROR('Page 9'!G56/'Page 9'!$E56)," ",('Page 9'!G56/'Page 9'!$E56)) -> 0 | H12: =IF(ISERROR('Page 9'!H56/'Page 9'!$E56)," ",('Page 9'!H56/'Page 9'!$E56)) -> 0 | I12: =IF(ISERROR('Page 9'!I56/'Page 9'!$E56)," ",('Page 9'!I56/'Page 9'!$E56)) -> 0 | J12: =IF(ISERROR('Page 9'!J56/'Page 9'!$E56)," ",('Page 9'!J56/'Page 9'!$E56)) -> 0
B13: SCHMDT-SNP | E13: 1 | F13: =IF(ISERROR('Page 9'!F57/'Page 9'!$E57)," ",('Page 9'!F57/'Page 9'!$E57)) -> 0.5078024957 | G13: =IF(ISERROR('Page 9'!G57/'Page 9'!$E57)," ",('Page 9'!G57/'Page 9'!$E57)) -> 0.2193659483 | H13: =IF(ISERROR('Page 9'!H57/'Page 9'!$E57)," ",('Page 9'!H57/'Page 9'!$E57)) -> 0.272831556 | I13: =IF(ISERROR('Page 9'!I57/'Page 9'!$E57)," ",('Page 9'!I57/'Page 9'!$E57)) -> 0 | J13: =IF(ISERROR('Page 9'!J57/'Page 9'!$E57)," ",('Page 9'!J57/'Page 9'!$E57)) -> 0
B14: SCHMDT-SO | E14: 1 | F14: =IF(ISERROR('Page 9'!F58/'Page 9'!$E58)," ",('Page 9'!F58/'Page 9'!$E58)) -> 0.4477732506 | G14: =IF(ISERROR('Page 9'!G58/'Page 9'!$E58)," ",('Page 9'!G58/'Page 9'!$E58)) -> 0.1816132325 | H14: =IF(ISERROR('Page 9'!H58/'Page 9'!$E58)," ",('Page 9'!H58/'Page 9'!$E58)) -> 0.365968925 | I14: =IF(ISERROR('Page 9'!I58/'Page 9'!$E58)," ",('Page 9'!I58/'Page 9'!$E58)) -> 0.004644591842 | J14: =IF(ISERROR('Page 9'!J58/'Page 9'!$E58)," ",('Page 9'!J58/'Page 9'!$E58)) -> 0
B15: SCHMDT-OTHER | E15: 1 | F15: =IF(ISERROR('Page 9'!F59/'Page 9'!$E59)," ",('Page 9'!F59/'Page 9'!$E59)) -> 0.4729783439 | G15: =IF(ISERROR('Page 9'!G59/'Page 9'!$E59)," ",('Page 9'!G59/'Page 9'!$E59)) -> 0.04763911026 | H15: =IF(ISERROR('Page 9'!H59/'Page 9'!$E59)," ",('Page 9'!H59/'Page 9'!$E59)) -> 0.0184020421 | I15: =IF(ISERROR('Page 9'!I59/'Page 9'!$E59)," ",('Page 9'!I59/'Page 9'!$E59)) -> 0.009070346608 | J15: =IF(ISERROR('Page 9'!J59/'Page 9'!$E59)," ",('Page 9'!J59/'Page 9'!$E59)) -> 0.4519101572
B16: SCHMDT-TAXDEPR | E16: 1 | F16: =IF(ISERROR(F6/$E6)," ",(F6/$E6)) -> 0.5774745116 | G16: 0.1959065237 | H16: 0.2221024253 | I16: 0.004516539357 | J16: 0
B17: SCHMDT-SITUS | E17: 1 | F17: 0.8344666423 | G17: 0.01183861175 | H17: 0.06331607949 | I17: 0.02943826634 | J17: 0.06094040008
B18: SCHMDT FACTOR | E18: 1 | F18: 0.5845728096 | G18: 0.1845062306 | H18: 0.2103760569 | I18: 0.004391121843 | J18: 0.0161537811
B20: SCHMDF | C20: DGP | D20: P | E20: 0 | F20: =VLOOKUP($D20,$D$30:$J$41,3,FALSE)*$E20 -> 0 | G20: =VLOOKUP($D20,$D$30:$J$41,4,FALSE)*$E20 -> 0 | H20: =VLOOKUP($D20,$D$30:$J$41,5,FALSE)*$E20 -> 0 | I20: =VLOOKUP($D20,$D$30:$J$41,6,FALSE)*$E20 -> 0 | J20: =VLOOKUP($D20,$D$30:$J$41,7,FALSE)*$E20 -> 0
A21: =IF(C21="","",B21&"-"&C21) ->  | B21: Total-SCHMDF | E21: =SUMIF($A$6:$A$41,"SCHMDF",E$6:E$41) -> 0 | F21: 0 | G21: 0 | H21: 0 | I21: 0 | J21: 0
A22: =IF(C22="","",B22&"-"&C22) ->  | B22: SCHMDF FACTOR | E22: =SUM(F22:J22) -> 0 | F22: =IF(ISERROR(F21/$E21)," ",(F21/$E21)) ->  | G22: =IF(ISERROR(G21/$E21)," ",(G21/$E21)) ->  | H22: =IF(ISERROR(H21/$E21)," ",(H21/$E21)) ->  | I22: =IF(ISERROR(I21/$E21)," ",(I21/$E21)) ->  | J22: =IF(ISERROR(J21/$E21)," ",(J21/$E21)) -> 
A24: =IF(C24="","",B24&"-"&C24) ->  | B24: Total-SCHMD | E24: =SUM(E21,E8,'Page 9'!E22) -> 3285612 | F24: =SUM(F21,F8,'Page 9'!F22) -> 1917596.298 | G24: =SUM(G21,G8,'Page 9'!G22) -> 603696.6551 | H24: =SUM(H21,H8,'Page 9'!H22) -> 694148.6412 | I24: =SUM(I21,I8,'Page 9'!I22) -> 17448.40561 | J24: =SUM(J21,J8,'Page 9'!J22) -> 52722
A25: =IF(C25="","",B25&"-"&C25) ->  | B25: SCHMD FACTOR | E25: =SUM(F25:J25) -> 1 | F25: =IF(ISERROR(F24/$E24)," ",(F24/$E24)) -> 0.5836344334 | G25: =IF(ISERROR(G24/$E24)," ",(G24/$E24)) -> 0.1837394845 | H25: =IF(ISERROR(H24/$E24)," ",(H24/$E24)) -> 0.2112692068 | I25: =IF(ISERROR(I24/$E24)," ",(I24/$E24)) -> 0.005310549637 | J25: =IF(ISERROR(J24/$E24)," ",(J24/$E24)) -> 0.01604632562
A27: =IF(C27="","",B27&"-"&C27) ->  | B27: Net SCHM
A28: =IF(C28="","",B28&"-"&C28) -> 
E29: Total | F29: Production | G29: Transmission | H29: Poles & Wires | I29: Customers | J29: Miscellaneous
D30: DMSC | E30: =SUM(F30:J30) -> 1 | F30: 0 | G30: 0 | H30: 0 | I30: 0 | J30: 1
D31: DPW | E31: 1 | F31: 0 | G31: 0 | H31: 1 | I31: 0 | J31: 0
D32: CUST | E32: 1 | F32: 0 | G32: 0 | H32: 0 | I32: 1 | J32: 0
D33: ESD | E33: 1 | F33: 0.3 | G33: 0.1 | H33: 0.6 | I33: 0 | J33: 0
D34: GP | E34: 1 | F34: ='Page 4'!E43 -> 0.5092664563 | G34: ='Page 4'!F43 -> 0.2157600698 | H34: ='Page 4'!G43 -> 0.268675091 | I34: ='Page 4'!H43 -> 0.006298382938 | J34: ='Page 4'!I43 -> 0
D35: LABOR | E35: 1 | F35: ='Page 14'!C25 -> 0.4271290455 | G35: ='Page 14'!D25 -> 0.06855059318 | H35: ='Page 14'!E25 -> 0.3553382213 | I35: ='Page 14'!F25 -> 0.14898214 | J35: ='Page 14'!G25 -> 0
D36: P | E36: 1 | F36: ='Page 14'!C13 -> 1 | G36: ='Page 14'!D13 -> 0 | H36: ='Page 14'!E13 -> 0 | I36: ='Page 14'!F13 -> 0 | J36: ='Page 14'!G13 -> 0
D37: PT | E37: 1 | F37: =+'Page 14'!C17 -> 0.6983285645 | G37: =+'Page 14'!D17 -> 0.3016714355 | H37: 0 | I37: 0 | J37: 0
D38: PTD | E38: 1 | F38: ='Page 14'!C16 -> 0.5078024957 | G38: ='Page 14'!D16 -> 0.2193659483 | H38: ='Page 14'!E16 -> 0.272831556 | I38: ='Page 14'!F16 -> 0 | J38: ='Page 14'!G16 -> 0
D39: T | E39: 1 | F39: ='Page 14'!C14 -> 0 | G39: ='Page 14'!D14 -> 1 | H39: ='Page 14'!E14 -> 0 | I39: ='Page 14'!F14 -> 0 | J39: ='Page 14'!G14 -> 0
D40: TAXDEPR | E40: 1 | F40: ='Page 11'!C24 -> 0.5774745116 | G40: ='Page 11'!D24 -> 0.1959065237 | H40: ='Page 11'!E24 -> 0.2221024253 | I40: ='Page 11'!F24 -> 0.004516539357 | J40: ='Page 11'!G24 -> 0
D41: TD | E41: 1 | F41: ='Page 14'!C18 -> 0 | G41: ='Page 14'!D18 -> 0.4456868359 | H41: ='Page 14'!E18 -> 0.5543131641 | I41: ='Page 14'!F18 -> 0 | J41: ='Page 14'!G18 -> 0

Sheet Page 11
A1: =+'Page 1'!$A$1 -> PacifiCorp
A2: =+'Page 1'!A2 -> 12 Months Ended June 2011
A3: Tax Depreciation
B5: Total | C5: Production | D5: Transmission | E5: Distribution | F5: General | G5: Mining
A8: Total | B8: =SUM(C8:G8) -> 1058690506 | C8: =571941475-G8 -> 563980234 | D8: 192892391 | E8: 215853777 | F8: 78002863 | G8: 7961241
A12: Conversion to COS Functions | B12: Total | C12: Pro | D12: Trn | E12: Dis | F12: Retail | G12: Misc
A14: Percent of GenPlant in Functions | B14: =SUM(C14:F14) -> 1 | C14: 0.5054341137 | D14: 0.18604427 | E14: 0.2472210799 | F14: 0.06130053634 | G14: 0
A15: (%'s developed in JAM May 2013 -
A16: use "Total Plant" variable)
A18: Allocation of GenPlant to Functions | B18: =SUM(C18:F18) -> 78002863 | C18: =+$F$8*C14 -> 39425307.93 | D18: =+$F$8*D14 -> 14511985.71 | E18: =+$F$8*E14 -> 19283952.03 | F18: =+$F$8*F14 -> 4781617.338 | G18: =+$F$8*G14 -> 0
A19: Assignment of Mining to Prod Function | B19: =SUM(C19:F19) -> 7961241 | C19: =G8 -> 7961241
A21: Adjusted Totals | B21: =SUM(C21:F21) -> 1058690506 | C21: =+C8+C18+C19 -> 611366782.9 | D21: =+D8+D18+D19 -> 207404376.7 | E21: =+E8+E18+E19 -> 235137729 | F21: =+F18+F19 -> 4781617.338 | G21: =+G18+G19 -> 0
A24: TAXDEPR FACTOR | B24: =SUM(C24:F24) -> 1 | C24: =+C21/$B$21 -> 0.5774745116 | D24: =+D21/$B$21 -> 0.1959065237 | E24: =+E21/$B$21 -> 0.2221024253 | F24: =+F21/$B$21 -> 0.004516539357 | G24: =+G21/$B$21 -> 0

Sheet Page 12
B1: =+'Page 1'!A1 -> PacifiCorp
B2: =+'Page 1'!A2 -> 12 Months Ended June 2011
B3: Reg Assets / Deferred Debits
B5: Pri-Acct | C5: Factor | D5: Function | E5: Total | F5: Production | G5: Transmission | H5: DPW | I5: CUST | J5: DMSC
A6: ="RA"&"-"&C6 -> RA-SE | B6: 182M | C6: SE | D6: P | E6: 0 | F6: =VLOOKUP($D6,'Page 13'!$D$21:$J$33,3,FALSE)*$E6 -> 0 | G6: =VLOOKUP($D6,'Page 13'!$D$21:$J$33,4,FALSE)*$E6 -> 0 | H6: =VLOOKUP($D6,'Page 13'!$D$21:$J$33,5,FALSE)*$E6 -> 0 | I6: =VLOOKUP($D6,'Page 13'!$D$21:$J$33,6,FALSE)*$E6 -> 0 | J6: =VLOOKUP($D6,'Page 13'!$D$21:$J$33,7,FALSE)*$E6 -> 0
A7: RA-SG | B7: 182M | C7: SG | D7: P | E7: 0 | F7: =VLOOKUP($D7,'Page 13'!$D$21:$J$33,3,FALSE)*$E7 -> 0 | G7: =VLOOKUP($D7,'Page 13'!$D$21:$J$33,4,FALSE)*$E7 -> 0 | H7: =VLOOKUP($D7,'Page 13'!$D$21:$J$33,5,FALSE)*$E7 -> 0 | I7: =VLOOKUP($D7,'Page 13'!$D$21:$J$33,6,FALSE)*$E7 -> 0 | J7: =VLOOKUP($D7,'Page 13'!$D$21:$J$33,7,FALSE)*$E7 -> 0
A8: RA-SGCT | B8: 182M | C8: SGCT | D8: P | E8: 6828 | F8: =VLOOKUP($D8,'Page 13'!$D$21:$J$33,3,FALSE)*$E8 -> 6828 | G8: =VLOOKUP($D8,'Page 13'!$D$21:$J$33,4,FALSE)*$E8 -> 0 | H8: =VLOOKUP($D8,'Page 13'!$D$21:$J$33,5,FALSE)*$E8 -> 0 | I8: =VLOOKUP($D8,'Page 13'!$D$21:$J$33,6,FALSE)*$E8 -> 0 | J8: =VLOOKUP($D8,'Page 13'!$D$21:$J$33,7,FALSE)*$E8 -> 0
A9: RA-SG-P | B9: 182M | C9: SG-P | D9: P | E9: 0 | F9: =VLOOKUP($D9,'Page 13'!$D$21:$J$33,3,FALSE)*$E9 -> 0 | G9: =VLOOKUP($D9,'Page 13'!$D$21:$J$33,4,FALSE)*$E9 -> 0 | H9: =VLOOKUP($D9,'Page 13'!$D$21:$J$33,5,FALSE)*$E9 -> 0 | I9: =VLOOKUP($D9,'Page 13'!$D$21:$J$33,6,FALSE)*$E9 -> 0 | J9: =VLOOKUP($D9,'Page 13'!$D$21:$J$33,7,FALSE)*$E9 -> 0
A10: RA-SO | B10: 182M | C10: SO | D10: DMSC | E10: 5547 | F10: =VLOOKUP($D10,'Page 13'!$D$21:$J$33,3,FALSE)*$E10 -> 0 | G10: =VLOOKUP($D10,'Page 13'!$D$21:$J$33,4,FALSE)*$E10 -> 0 | H10: =VLOOKUP($D10,'Page 13'!$D$21:$J$33,5,FALSE)*$E10 -> 0 | I10: =VLOOKUP($D10,'Page 13'!$D$21:$J$33,6,FALSE)*$E10 -> 0 | J10: =VLOOKUP($D10,'Page 13'!$D$21:$J$33,7,FALSE)*$E10 -> 5547
A11: RA-SO | B11: 182M | C11: SO | D11: DPW | E11: 0 | F11: =VLOOKUP($D11,'Page 13'!$D$21:$J$33,3,FALSE)*$E11 -> 0 | G11: =VLOOKUP($D11,'Page 13'!$D$21:$J$33,4,FALSE)*$E11 -> 0 | H11: =VLOOKUP($D11,'Page 13'!$D$21:$J$33,5,FALSE)*$E11 -> 0 | I11: =VLOOKUP($D11,'Page 13'!$D$21:$J$33,6,FALSE)*$E11 -> 0 | J11: =VLOOKUP($D11,'Page 13'!$D$21:$J$33,7,FALSE)*$E11 -> 0
A12: RA-SO | B12: 182M | C12: SO | D12: ESD | E12: 3294 | F12: =VLOOKUP($D12,'Page 13'!$D$21:$J$33,3,FALSE)*$E12 -> 988.2 | G12: =VLOOKUP($D12,'Page 13'!$D$21:$J$33,4,FALSE)*$E12 -> 329.4 | H12: =VLOOKUP($D12,'Page 13'!$D$21:$J$33,5,FALSE)*$E12 -> 1976.4 | I12: =VLOOKUP($D12,'Page 13'!$D$21:$J$33,6,FALSE)*$E12 -> 0 | J12: =VLOOKUP($D12,'Page 13'!$D$21:$J$33,7,FALSE)*$E12 -> 0
A13: RA-SO | B13: 182M | C13: SO | D13: P | E13: 0 | F13: =VLOOKUP($D13,'Page 13'!$D$21:$J$33,3,FALSE)*$E13 -> 0 | G13: =VLOOKUP($D13,'Page 13'!$D$21:$J$33,4,FALSE)*$E13 -> 0 | H13: =VLOOKUP($D13,'Page 13'!$D$21:$J$33,5,FALSE)*$E13 -> 0 | I13: =VLOOKUP($D13,'Page 13'!$D$21:$J$33,6,FALSE)*$E13 -> 0 | J13: =VLOOKUP($D13,'Page 13'!$D$21:$J$33,7,FALSE)*$E13 -> 0
A14: RA-SO | B14: 182M | C14: SO | D14: TD | E14: 0 | F14: =VLOOKUP($D14,'Page 13'!$D$21:$J$33,3,FALSE)*$E14 -> 0 | G14: =VLOOKUP($D14,'Page 13'!$D$21:$J$33,4,FALSE)*$E14 -> 0 | H14: =VLOOKUP($D14,'Page 13'!$D$21:$J$33,5,FALSE)*$E14 -> 0 | I14: =VLOOKUP($D14,'Page 13'!$D$21:$J$33,6,FALSE)*$E14 -> 0 | J14: =VLOOKUP($D14,'Page 13'!$D$21:$J$33,7,FALSE)*$E14 -> 0
A15: RA-OTHER | B15: 182M | C15: OTHER | D15: CUST | E15: 1579 | F15: =VLOOKUP($D15,'Page 13'!$D$21:$J$33,3,FALSE)*$E15 -> 0 | G15: =VLOOKUP($D15,'Page 13'!$D$21:$J$33,4,FALSE)*$E15 -> 0 | H15: =VLOOKUP($D15,'Page 13'!$D$21:$J$33,5,FALSE)*$E15 -> 0 | I15: =VLOOKUP($D15,'Page 13'!$D$21:$J$33,6,FALSE)*$E15 -> 1579 | J15: =VLOOKUP($D15,'Page 13'!$D$21:$J$33,7,FALSE)*$E15 -> 0
A16: RA-OTHER | B16: 182M | C16: OTHER | D16: DMSC | E16: 5453 | F16: =VLOOKUP($D16,'Page 13'!$D$21:$J$33,3,FALSE)*$E16 -> 0 | G16: =VLOOKUP($D16,'Page 13'!$D$21:$J$33,4,FALSE)*$E16 -> 0 | H16: =VLOOKUP($D16,'Page 13'!$D$21:$J$33,5,FALSE)*$E16 -> 0 | I16: =VLOOKUP($D16,'Page 13'!$D$21:$J$33,6,FALSE)*$E16 -> 0 | J16: =VLOOKUP($D16,'Page 13'!$D$21:$J$33,7,FALSE)*$E16 -> 5453
A17: RA-OTHER | B17: 182M | C17: OTHER | D17: LABOR | E17: 14218 | F17: =VLOOKUP($D17,'Page 13'!$D$21:$J$33,3,FALSE)*$E17 -> 6072.920769 | G17: =VLOOKUP($D17,'Page 13'!$D$21:$J$33,4,FALSE)*$E17 -> 974.6523338 | H17: =VLOOKUP($D17,'Page 13'!$D$21:$J$33,5,FALSE)*$E17 -> 5052.198831 | I17: =VLOOKUP($D17,'Page 13'!$D$21:$J$33,6,FALSE)*$E17 -> 2118.228067 | J17: =VLOOKUP($D17,'Page 13'!$D$21:$J$33,7,FALSE)*$E17 -> 0
A18: RA-OTHER | B18: 182M | C18: OTHER | D18: P | E18: 51178 | F18: =VLOOKUP($D18,'Page 13'!$D$21:$J$33,3,FALSE)*$E18 -> 51178 | G18: =VLOOKUP($D18,'Page 13'!$D$21:$J$33,4,FALSE)*$E18 -> 0 | H18: =VLOOKUP($D18,'Page 13'!$D$21:$J$33,5,FALSE)*$E18 -> 0 | I18: =VLOOKUP($D18,'Page 13'!$D$21:$J$33,6,FALSE)*$E18 -> 0 | J18: =VLOOKUP($D18,'Page 13'!$D$21:$J$33,7,FALSE)*$E18 -> 0
A19: RA-OTHER | B19: 182M | C19: OTHER | D19: PT | E19: 10922 | F19: =VLOOKUP($D19,'Page 13'!$D$21:$J$33,3,FALSE)*$E19 -> 7627.144582 | G19: =VLOOKUP($D19,'Page 13'!$D$21:$J$33,4,FALSE)*$E19 -> 3294.855418 | H19: =VLOOKUP($D19,'Page 13'!$D$21:$J$33,5,FALSE)*$E19 -> 0 | I19: =VLOOKUP($D19,'Page 13'!$D$21:$J$33,6,FALSE)*$E19 -> 0 | J19: =VLOOKUP($D19,'Page 13'!$D$21:$J$33,7,FALSE)*$E19 -> 0
A20: RA-OTHER | B20: 182M | C20: OTHER | D20: PTD | E20: 14703 | F20: =VLOOKUP($D20,'Page 13'!$D$21:$J$33,3,FALSE)*$E20 -> 7466.220094 | G20: =VLOOKUP($D20,'Page 13'!$D$21:$J$33,4,FALSE)*$E20 -> 3225.337538 | H20: =VLOOKUP($D20,'Page 13'!$D$21:$J$33,5,FALSE)*$E20 -> 4011.442368 | I20: =VLOOKUP($D20,'Page 13'!$D$21:$J$33,6,FALSE)*$E20 -> 0 | J20: =VLOOKUP($D20,'Page 13'!$D$21:$J$33,7,FALSE)*$E20 -> 0
A21: RA-OTHER | B21: 182M | C21: OTHER | D21: TD | E21: 664 | F21: =VLOOKUP($D21,'Page 13'!$D$21:$J$33,3,FALSE)*$E21 -> 0 | G21: =VLOOKUP($D21,'Page 13'!$D$21:$J$33,4,FALSE)*$E21 -> 295.936059 | H21: =VLOOKUP($D21,'Page 13'!$D$21:$J$33,5,FALSE)*$E21 -> 368.063941 | I21: =VLOOKUP($D21,'Page 13'!$D$21:$J$33,6,FALSE)*$E21 -> 0 | J21: =VLOOKUP($D21,'Page 13'!$D$21:$J$33,7,FALSE)*$E21 -> 0
A22: RA-TROJD | B22: 182M | C22: TROJD | D22: P | E22: 0 | F22: =VLOOKUP($D22,'Page 13'!$D$21:$J$33,3,FALSE)*$E22 -> 0 | G22: =VLOOKUP($D22,'Page 13'!$D$21:$J$33,4,FALSE)*$E22 -> 0 | H22: =VLOOKUP($D22,'Page 13'!$D$21:$J$33,5,FALSE)*$E22 -> 0 | I22: =VLOOKUP($D22,'Page 13'!$D$21:$J$33,6,FALSE)*$E22 -> 0 | J22: =VLOOKUP($D22,'Page 13'!$D$21:$J$33,7,FALSE)*$E22 -> 0
A23: RA-TROJP | B23: 182M | C23: TROJP | D23: P | E23: 0 | F23: =VLOOKUP($D23,'Page 13'!$D$21:$J$33,3,FALSE)*$E23 -> 0 | G23: =VLOOKUP($D23,'Page 13'!$D$21:$J$33,4,FALSE)*$E23 -> 0 | H23: =VLOOKUP($D23,'Page 13'!$D$21:$J$33,5,FALSE)*$E23 -> 0 | I23: =VLOOKUP($D23,'Page 13'!$D$21:$J$33,6,FALSE)*$E23 -> 0 | J23: =VLOOKUP($D23,'Page 13'!$D$21:$J$33,7,FALSE)*$E23 -> 0
A24: RA-SITUS | B24: 182M | C24: SITUS | D24: DMSC | E24: -623 | F24: =VLOOKUP($D24,'Page 13'!$D$21:$J$33,3,FALSE)*$E24 -> 0 | G24: =VLOOKUP($D24,'Page 13'!$D$21:$J$33,4,FALSE)*$E24 -> 0 | H24: =VLOOKUP($D24,'Page 13'!$D$21:$J$33,5,FALSE)*$E24 -> 0 | I24: =VLOOKUP($D24,'Page 13'!$D$21:$J$33,6,FALSE)*$E24 -> 0 | J24: =VLOOKUP($D24,'Page 13'!$D$21:$J$33,7,FALSE)*$E24 -> -623
A25: RA-SITUS | B25: 182M | C25: SITUS | D25: LABOR | E25: -544 | F25: =VLOOKUP($D25,'Page 13'!$D$21:$J$33,3,FALSE)*$E25 -> -232.3582007 | G25: =VLOOKUP($D25,'Page 13'!$D$21:$J$33,4,FALSE)*$E25 -> -37.29152269 | H25: =VLOOKUP($D25,'Page 13'!$D$21:$J$33,5,FALSE)*$E25 -> -193.3039924 | I25: =VLOOKUP($D25,'Page 13'!$D$21:$J$33,6,FALSE)*$E25 -> -81.04628417 | J25: =VLOOKUP($D25,'Page 13'!$D$21:$J$33,7,FALSE)*$E25 -> 0
A26: RA-SITUS | B26: 182M | C26: SITUS | D26: P | E26: 17963 | F26: =VLOOKUP($D26,'Page 13'!$D$21:$J$33,3,FALSE)*$E26 -> 17963 | G26: =VLOOKUP($D26,'Page 13'!$D$21:$J$33,4,FALSE)*$E26 -> 0 | H26: =VLOOKUP($D26,'Page 13'!$D$21:$J$33,5,FALSE)*$E26 -> 0 | I26: =VLOOKUP($D26,'Page 13'!$D$21:$J$33,6,FALSE)*$E26 -> 0 | J26: =VLOOKUP($D26,'Page 13'!$D$21:$J$33,7,FALSE)*$E26 -> 0
A27: RA-SITUS | B27: 182M | C27: SITUS | D27: PTD | E27: 1268 | F27: =VLOOKUP($D27,'Page 13'!$D$21:$J$33,3,FALSE)*$E27 -> 643.8935645 | G27: =VLOOKUP($D27,'Page 13'!$D$21:$J$33,4,FALSE)*$E27 -> 278.1560225 | H27: =VLOOKUP($D27,'Page 13'!$D$21:$J$33,5,FALSE)*$E27 -> 345.950413 | I27: =VLOOKUP($D27,'Page 13'!$D$21:$J$33,6,FALSE)*$E27 -> 0 | J27: =VLOOKUP($D27,'Page 13'!$D$21:$J$33,7,FALSE)*$E27 -> 0
A28: RA-SITUS | B28: 182M | C28: SITUS | D28: CUST | E28: 3168 | F28: =VLOOKUP($D28,'Page 13'!$D$21:$J$33,3,FALSE)*$E28 -> 0 | G28: =VLOOKUP($D28,'Page 13'!$D$21:$J$33,4,FALSE)*$E28 -> 0 | H28: =VLOOKUP($D28,'Page 13'!$D$21:$J$33,5,FALSE)*$E28 -> 0 | I28: =VLOOKUP($D28,'Page 13'!$D$21:$J$33,6,FALSE)*$E28 -> 3168 | J28: =VLOOKUP($D28,'Page 13'!$D$21:$J$33,7,FALSE)*$E28 -> 0
B29: Total-SO | E29: =SUMIF($A:$A,"RA-SO",E:E) -> 8841 | F29: 988.2 | G29: 329.4 | H29: 1976.4 | I29: 0 | J29: 5547
B30: Total-OTHER | E30: =SUMIF($A:$A,"RA-OTHER",E:E) -> 98717 | F30: 72344.28544 | G30: 7790.781349 | H30: 9431.705139 | I30: 3697.228067 | J30: 5453
B31: Total SITUS | E31: =SUMIF($A:$A,"RA-SITUS",E:E) -> 21232 | F31: 18374.53536 | G31: 240.8644998 | H31: 152.6464206 | I31: 3086.953716 | J31: -623
B32: Total RA | E32: =SUMIF($B:$B,"182M",E:E) -> 135618 | F32: 98535.02081 | G32: 8361.045849 | H32: 11560.75156 | I32: 6784.181783 | J32: 10377
B33: DDSO2 FACTOR | E33: =SUM(F33:J33) -> 1 | F33: =F29/$E29 -> 0.1117746861 | G33: =G29/$E29 -> 0.03725822871 | H33: =H29/$E29 -> 0.2235493722 | I33: =I29/$E29 -> 0 | J33: =J29/$E29 -> 0.6274177129
B34: DDS2 FACTOR | E34: =SUM(F34:J34) -> 1 | F34: =F31/$E31 -> 0.8654170763 | G34: =G31/$E31 -> 0.01134440937 | H34: =H31/$E31 -> 0.007189450857 | I34: =I31/$E31 -> 0.1453915654 | J34: =J31/$E31 -> -0.02934250188
A36: ="DD"&"-"&C36 -> DD-SE | B36: 186M | C36: SE | D36: P | E36: 13137 | F36: =VLOOKUP($D36,'Page 13'!$D$21:$J$33,3,FALSE)*$E36 -> 13137 | G36: =VLOOKUP($D36,'Page 13'!$D$21:$J$33,4,FALSE)*$E36 -> 0 | H36: =VLOOKUP($D36,'Page 13'!$D$21:$J$33,5,FALSE)*$E36 -> 0 | I36: =VLOOKUP($D36,'Page 13'!$D$21:$J$33,6,FALSE)*$E36 -> 0 | J36: =VLOOKUP($D36,'Page 13'!$D$21:$J$33,7,FALSE)*$E36 -> 0
A37: DD-SG | B37: 186M | C37: SG | D37: P | E37: 31278 | F37: =VLOOKUP($D37,'Page 13'!$D$21:$J$33,3,FALSE)*$E37 -> 31278 | G37: =VLOOKUP($D37,'Page 13'!$D$21:$J$33,4,FALSE)*$E37 -> 0 | H37: =VLOOKUP($D37,'Page 13'!$D$21:$J$33,5,FALSE)*$E37 -> 0 | I37: =VLOOKUP($D37,'Page 13'!$D$21:$J$33,6,FALSE)*$E37 -> 0 | J37: =VLOOKUP($D37,'Page 13'!$D$21:$J$33,7,FALSE)*$E37 -> 0
A38: DD-SG | B38: 186M | C38: SG | D38: T | E38: 18006 | F38: =VLOOKUP($D38,'Page 13'!$D$21:$J$33,3,FALSE)*$E38 -> 0 | G38: =VLOOKUP($D38,'Page 13'!$D$21:$J$33,4,FALSE)*$E38 -> 18006 | H38: =VLOOKUP($D38,'Page 13'!$D$21:$J$33,5,FALSE)*$E38 -> 0 | I38: =VLOOKUP($D38,'Page 13'!$D$21:$J$33,6,FALSE)*$E38 -> 0 | J38: =VLOOKUP($D38,'Page 13'!$D$21:$J$33,7,FALSE)*$E38 -> 0
A39: DD-SO | B39: 186M | C39: SO | D39: DMSC | E39: 0 | F39: =VLOOKUP($D39,'Page 13'!$D$21:$J$33,3,FALSE)*$E39 -> 0 | G39: =VLOOKUP($D39,'Page 13'!$D$21:$J$33,4,FALSE)*$E39 -> 0 | H39: =VLOOKUP($D39,'Page 13'!$D$21:$J$33,5,FALSE)*$E39 -> 0 | I39: =VLOOKUP($D39,'Page 13'!$D$21:$J$33,6,FALSE)*$E39 -> 0 | J39: =VLOOKUP($D39,'Page 13'!$D$21:$J$33,7,FALSE)*$E39 -> 0
A40: DD-SITUS | B40: 186M | C40: SITUS | D40: T | E40: 0 | F40: =VLOOKUP($D40,'Page 13'!$D$21:$J$33,3,FALSE)*$E40 -> 0 | G40: =VLOOKUP($D40,'Page 13'!$D$21:$J$33,4,FALSE)*$E40 -> 0 | H40: =VLOOKUP($D40,'Page 13'!$D$21:$J$33,5,FALSE)*$E40 -> 0 | I40: =VLOOKUP($D40,'Page 13'!$D$21:$J$33,6,FALSE)*$E40 -> 0 | J40: =VLOOKUP($D40,'Page 13'!$D$21:$J$33,7,FALSE)*$E40 -> 0
A41: DD-SITUS | B41: 186M | C41: SITUS | D41: LABOR | E41: 0 | F41: =VLOOKUP($D41,'Page 13'!$D$21:$J$33,3,FALSE)*$E41 -> 0 | G41: =VLOOKUP($D41,'Page 13'!$D$21:$J$33,4,FALSE)*$E41 -> 0 | H41: =VLOOKUP($D41,'Page 13'!$D$21:$J$33,5,FALSE)*$E41 -> 0 | I41: =VLOOKUP($D41,'Page 13'!$D$21:$J$33,6,FALSE)*$E41 -> 0 | J41: =VLOOKUP($D41,'Page 13'!$D$21:$J$33,7,FALSE)*$E41 -> 0
B42: Total SITUS | E42: =SUMIF($A:$A,"DD-SITUS",E:E) -> 0 | F42: 0 | G42: 0 | H42: 0 | I42: 0 | J42: 0
B43: Total SG | E43: =SUMIF($A:$A,"DD-SG",E:E) -> 49284 | F43: 31278 | G43: 18006 | H43: 0 | I43: 0 | J43: 0
B44: Total-SO | E44: =SUMIF($A:$A,"DD-SO",E:E) -> 0 | F44: 0 | G44: 0 | H44: 0 | I44: 0 | J44: 0
B45: Total-DD | E45: =SUMIF($B:$B,"186M",E:E) -> 62421 | F45: 44415 | G45: 18006 | H45: 0 | I45: 0 | J45: 0
B46: DDS6 FACTOR | E46: =SUM(F46:J46) -> 0 | F46: =IFERROR(F42/$E42,0) -> 0 | G46: =IFERROR(G42/$E42,0) -> 0 | H46: =IFERROR(H42/$E42,0) -> 0 | I46: =IFERROR(I42/$E42,0) -> 0 | J46: =IFERROR(J42/$E42,0) -> 0
B47: DEFSG FACTOR | E47: =SUM(F47:J47) -> 1 | F47: =F43/$E43 -> 0.6346481617 | G47: =G43/$E43 -> 0.3653518383 | H47: =H43/$E43 -> 0 | I47: =I43/$E43 -> 0 | J47: =J43/$E43 -> 0
B48: DDSO6 FACTOR | E48: =SUM(F48:J48) -> 0 | F48: =IFERROR(F44/$E44,0) -> 0 | G48: =IFERROR(G44/$E44,0) -> 0 | H48: =IFERROR(H44/$E44,0) -> 0 | I48: =IFERROR(I44/$E44,0) -> 0 | J48: =IFERROR(J44/$E44,0) -> 0

Sheet Page 13
B1: =+'Page 1'!A1 -> PacifiCorp
B2: =+'Page 1'!A2 -> 12 Months Ended June 2011
B3: Reg Assets / Deferred Debits
B5: Pri-Acct | C5: Factor | D5: Function | E5: Total | F5: Production | G5: Transmission | H5: DPW | I5: CUST | J5: DMSC
B6: Major Adjustment
B7: 1998 Early Retirement | D7: LABOR | E7: 0 | F7: =VLOOKUP($D7,$D$21:$J$33,3,FALSE)*$E7 -> 0 | G7: =VLOOKUP($D7,$D$21:$J$33,4,FALSE)*$E7 -> 0 | H7: =VLOOKUP($D7,$D$21:$J$33,5,FALSE)*$E7 -> 0 | I7: =VLOOKUP($D7,$D$21:$J$33,6,FALSE)*$E7 -> 0 | J7: =VLOOKUP($D7,$D$21:$J$33,7,FALSE)*$E7 -> 0
B8: 1999 Early Retirement | D8: LABOR | E8: 0 | F8: =VLOOKUP($D8,$D$21:$J$33,3,FALSE)*$E8 -> 0 | G8: =VLOOKUP($D8,$D$21:$J$33,4,FALSE)*$E8 -> 0 | H8: =VLOOKUP($D8,$D$21:$J$33,5,FALSE)*$E8 -> 0 | I8: =VLOOKUP($D8,$D$21:$J$33,6,FALSE)*$E8 -> 0 | J8: =VLOOKUP($D8,$D$21:$J$33,7,FALSE)*$E8 -> 0
B9: Transition Planning | D9: PTD | E9: 0 | F9: =VLOOKUP($D9,$D$21:$J$33,3,FALSE)*$E9 -> 0 | G9: =VLOOKUP($D9,$D$21:$J$33,4,FALSE)*$E9 -> 0 | H9: =VLOOKUP($D9,$D$21:$J$33,5,FALSE)*$E9 -> 0 | I9: =VLOOKUP($D9,$D$21:$J$33,6,FALSE)*$E9 -> 0 | J9: =VLOOKUP($D9,$D$21:$J$33,7,FALSE)*$E9 -> 0
B10: Environmental Clean-up | D10: ESD | E10: 0 | F10: =VLOOKUP($D10,$D$21:$J$33,3,FALSE)*$E10 -> 0 | G10: =VLOOKUP($D10,$D$21:$J$33,4,FALSE)*$E10 -> 0 | H10: =VLOOKUP($D10,$D$21:$J$33,5,FALSE)*$E10 -> 0 | I10: =VLOOKUP($D10,$D$21:$J$33,6,FALSE)*$E10 -> 0 | J10: =VLOOKUP($D10,$D$21:$J$33,7,FALSE)*$E10 -> 0
B11: Y2K | D11: PTD | E11: 0 | F11: =VLOOKUP($D11,$D$21:$J$33,3,FALSE)*$E11 -> 0 | G11: =VLOOKUP($D11,$D$21:$J$33,4,FALSE)*$E11 -> 0 | H11: =VLOOKUP($D11,$D$21:$J$33,5,FALSE)*$E11 -> 0 | I11: =VLOOKUP($D11,$D$21:$J$33,6,FALSE)*$E11 -> 0 | J11: =VLOOKUP($D11,$D$21:$J$33,7,FALSE)*$E11 -> 0
B12: Subtotal Major Adjustments | E12: =SUM(E7:E11) -> 0 | F12: 0 | G12: 0 | H12: 0 | I12: 0 | J12: 0
B14: Total 186M SO | E14: =+'Page 12'!E44+E12 -> 0 | F14: =+'Page 12'!F44+F12 -> 0 | G14: =+'Page 12'!G44+G12 -> 0 | H14: =+'Page 12'!H44+H12 -> 0 | I14: =+'Page 12'!I44+I12 -> 0 | J14: =+'Page 12'!J44+J12 -> 0
B16: Total 182 &186 | E16: =SUM('Page 12'!E45,'Page 12'!E32) -> 198039 | F16: =SUM('Page 12'!F32,'Page 12'!F45) -> 142950.0208 | G16: =SUM('Page 12'!G32,'Page 12'!G45) -> 26367.04585 | H16: =SUM('Page 12'!H32,'Page 12'!H45) -> 11560.75156 | I16: =SUM('Page 12'!I32,'Page 12'!I45) -> 6784.181783 | J16: =SUM('Page 12'!J32,'Page 12'!J45) -> 10377
E20: Total | F20: Production | G20: Transmission | H20: Poles & Wires | I20: Customers | J20: Miscellaneous
D21: DMSC | E21: =SUM(F21:J21) -> 1 | F21: 0 | G21: 0 | H21: 0 | I21: 0 | J21: 1
D22: DPW | E22: 1 | F22: 0 | G22: 0 | H22: 1 | I22: 0 | J22: 0
D23: CUST | E23: 1 | F23: 0 | G23: 0 | H23: 0 | I23: 1 | J23: 0
D24: ESD | E24: 1 | F24: 0.3 | G24: 0.1 | H24: 0.6 | I24: 0 | J24: 0
D25: GP | E25: 1 | F25: ='Page 4'!$E$43 -> 0.5092664563 | G25: ='Page 4'!$F$43 -> 0.2157600698 | H25: ='Page 4'!$G$43 -> 0.268675091 | I25: ='Page 4'!$H$43 -> 0.006298382938 | J25: ='Page 4'!$I$43 -> 0
D26: RETAIL | E26: 1 | F26: 0 | G26: 0 | H26: 0 | I26: 1 | J26: 0
D27: LABOR | E27: 1 | F27: ='Page 14'!$C$25 -> 0.4271290455 | G27: ='Page 14'!$D$25 -> 0.06855059318 | H27: ='Page 14'!$E$25 -> 0.3553382213 | I27: ='Page 14'!$F$25 -> 0.14898214 | J27: ='Page 14'!$G$25 -> 0
D28: P | E28: 1 | F28: ='Page 14'!$C$13 -> 1 | G28: ='Page 14'!$D$13 -> 0 | H28: ='Page 14'!$E$13 -> 0 | I28: ='Page 14'!$F$13 -> 0 | J28: ='Page 14'!$G$13 -> 0
D29: PT | E29: 1 | F29: ='Page 14'!$C$17 -> 0.6983285645 | G29: ='Page 14'!$D$17 -> 0.3016714355 | H29: ='Page 14'!$E$17 -> 0 | I29: ='Page 14'!$F$17 -> 0 | J29: ='Page 14'!$G$17 -> 0
D30: PTD | E30: 1 | F30: ='Page 14'!$C$16 -> 0.5078024957 | G30: ='Page 14'!$D$16 -> 0.2193659483 | H30: ='Page 14'!$E$16 -> 0.272831556 | I30: ='Page 14'!$F$16 -> 0 | J30: ='Page 14'!$G$16 -> 0
D31: T | E31: 1 | F31: ='Page 14'!$C$14 -> 0 | G31: ='Page 14'!$D$14 -> 1 | H31: ='Page 14'!$E$14 -> 0 | I31: ='Page 14'!$F$14 -> 0 | J31: ='Page 14'!$G$14 -> 0
D32: TAXDEPR | E32: 1 | F32: ='Page 11'!C24 -> 0.5774745116 | G32: ='Page 11'!D24 -> 0.1959065237 | H32: ='Page 11'!E24 -> 0.2221024253 | I32: ='Page 11'!F24 -> 0.004516539357 | J32: ='Page 11'!G24 -> 0
D33: TD | E33: 1 | F33: ='Page 14'!$C$18 -> 0 | G33: ='Page 14'!$D$18 -> 0.4456868359 | H33: ='Page 14'!$E$18 -> 0.5543131641 | I33: ='Page 14'!$F$18 -> 0 | J33: ='Page 14'!$G$18 -> 0

Sheet Page 14
A1: =+'Page 1'!A1 -> PacifiCorp
A2: =+'Page 1'!A2 -> 12 Months Ended June 2011
A3: FERC FORM 1 Funtionalization Factors
A6: Factor | B6: Total | C6: Production | D6: Transmission | E6: DPW | F6: CUST | G6: DMSC
A8: PLANT | B8: =SUM(C8:G8) -> 21177828.87 | C8: =+'Page 4'!D9 -> 10754154.36 | D8: =+'Page 4'!D10 -> 4645694.515 | E8: =+'Page 4'!D11 -> 5777980.004 | F8: 0 | G8: 0
A9: UNCLASSIFIED PLANT | B9: =SUM(C9:G9) -> 0 | F9: 0 | G9: 0
A10: TOTAL PLANT | B10: =SUM(C10:G10) -> 21177828.87 | C10: =C8+C9 -> 10754154.36 | D10: =D8+D9 -> 4645694.515 | E10: =E8+E9 -> 5777980.004 | F10: 0 | G10: 0
A12: PLANT %
A13: P | B13: =SUM(C13:G13) -> 1 | C13: =C10/C10 -> 1
A14: T | B14: 1 | D14: =D10/D10 -> 1
A15: DPW | B15: 1 | E15: =E10/E10 -> 1
A16: PTD | B16: 1 | C16: =C10/$B10 -> 0.5078024957 | D16: =D10/$B10 -> 0.2193659483 | E16: =E10/$B10 -> 0.272831556 | F16: =F10/$B10 -> 0 | G16: =G10/$B10 -> 0
A17: PT | B17: 1 | C17: =C10/(C10+D10) -> 0.6983285645 | D17: =D10/(C10+D10) -> 0.3016714355
A18: TD | B18: 1 | D18: =D10/(D10+E10) -> 0.4456868359 | E18: =E10/(D10+E10) -> 0.5543131641
A23: LABOR | B23: =SUM(C23:G23) -> 312530804 | C23: 133490984 | D23: 21424172 | E23: 111054140 | F23: =41273457+5288051 -> 46561508 | G23: 0
A25: LABOR % | B25: =B23/$B23 -> 1 | C25: =C23/$B23 -> 0.4271290455 | D25: =D23/$B23 -> 0.06855059318 | E25: =E23/$B23 -> 0.3553382213 | F25: =F23/$B23 -> 0.14898214 | G25: =G23/$B23 -> 0
A27: Source: Ferc Form 1 (Dec 2010) - pg. 354
A30: Material & Supplies | B30: =SUM(C30:G30) -> 110731982 | C30: 93357638 | D30: 718031 | E30: 16656313 | F30: 0 | G30: 0
A32: Material & Supplies % | B32: =B30/$B30 -> 1 | C32: 0.8430955205 | D32: 0.00648440484 | E32: 0.1504200747 | F32: 0 | G32: 0
A34: Source: Ferc Form 1 (Dec 2010) - pg. 227
A37: FERC (mWh) | B37: 28449800 | C37: =B37-D37 -> 15285755 | D37: 13164045 | E37: 0 | F37: 0 | G37: 0
A39: FERC % | B39: =B37/$B37 -> 1 | C39: =C37/$B37 -> 0.5372886628 | D39: =D37/$B37 -> 0.4627113372 | E39: 0 | F39: 0 | G39: 0
A41: Source: FERC reporting requirment No. 582
